Workbook

Sheet INTRO
B2: Formato de Reporte Conjunto para QP v.3
B4: El propósito de ésta plantilla en Excel, denominada Formato de Reporte Conjunto (Joint Reporting Form-JRF nombre en inglés), es proporcionar una herramienta estandarizada para las autoridades nacionales de salud y gestores de datos para hacer frente a los desafíos del reporte, facilitar la integración y contribuir aún más a la mejora de la gestión general del programa. Esta plantilla tiene como objetivo estandarizar los informes nacionales de los resultados de la ejecución del programa, mejorar la disponibilidad y la coordinación de los datos de quimioterapia preventiva-QP en todas las regiones de la OMS. Se solicita a las autoridades nacionales completar este formulario para ser enviado a la Organización Mundial de la Salud antes del 15 de agosto del año en curso para presentar datos sobre las intervenciones de QP implementadas durante el año anterior.
B6: Estructura de la apliación (hojas de trabajo):
B8: INTRO | C8: Esta hoja incluye instrucciones sobre cómo completar el formulario de reporte conjunto y la información sobre el estado de la QP para las enfermedades endémicas en el país
B9: COUNTRY_INFO | C9: Esta hoja incluye información sobre la estructura administrativa del país, la población por grupos de edad, el estado de endemicidad para cada enfermedad, la población que requiere QP, las intervenciones planeadas y las intervenciones realizadas
B10: MDA1, MDA2, MDA3, T1, T2 and T3 | C10: Estas hojas incluyen información sobre los distritos endémicos focalizados para el tratamiento con medicamentos específicos para QP, plan de tratamiento y el número de personas que recibieron tratamiento por grupo de edad
B11: DISTRICT | C11: Esta hoja incluye el resumen de las personas tratadas por cada enfermedad al nivel de implementación definido. Si los datos por sexo estan disponibles, estos deben ser ingresados
B12: SUMMARY | C12: Esta hoja incluye el resumen de las personas tratadas por cada enfermedad y por tipo de intervención de QP. Antes de generar el informe (ejecutar macros), por favor seleccione la enfermedad para la que usted necesita el informe. Siga la misma regla para generar diversos informes. Esta hoja de trabajo debe ser impresa y presentada como un Reporte Conjunto (vea la instrucción para la presentación de la hoja de SUMMARY).
B14: Instrucciones para la entrada de datos
B16: La mayoría de las celdas en las hojas de trabajo mencionados anteriormente incluyen fórmulas que son calculadas automáticamente de acuerdo con la política de tratamiento recomendada por la OMS para cada enfermedad. Vea el vínculo http://www.who.int/neglected_diseases/preventive_chemotherapy/pct_manual/en/index.html
B18: Por favor introduzca sus datos en las celdas de acuerdo con el siguiente código de color:
C20: Blanco - celda no protegida. Por favor ingrese el valor del indicador solicitado.
C22: Amarillo - celda protegida que incluye el nombre del indicador. No se requiere de entrada de datos.
C24: Naranja - celda no protegida e incluye un menú desplegable de opciones. Por favor seleccione el valor de la lista que se despliega.
C27: Verde - celda no protegida e incluye fórmula. Por favor cambie el valor solamente si sus datos son diferentes a los que se calcularon automáticamente.
C30: Azul - celda protegida e incluye fórmula. No se requiere la entrada de datos.
B32: Datos del País
B34: PAÍS | E34: STP
B36: Año del reporte de datos | E36: 2016
B38: ¿El país es endémico para filariasis linfática (FL)? | E38: Endémico
B40: ¿El país es endémico para oncocercosis (ONCO)? | E40: No endémico
B42: ¿El país es endémico para helmintiasis transmitidas por el contacto con el suelo (HTS)? | E42: Endémico
B44: ¿El país es endémico para esquistosomiasis (ESQ)? | E44: Endémico
B46: ¿Cuántas unidades administrativas tiene el país? | E46: 7
B47: Si no se dispone de los datos demográficos a segundo nivel administrativo por grupo de edad, por favor ingrese la proporción (%) de población por grupo de edad en el país. Si el dato está disponible, por favor deje estas celdas en blanco.
B48: 1-4 años | C48: Niños en edad preescolar (PreESC) | E48: 0.123
B49: 5-14 años | C49: Niños en edad escolar (ESC) | E49: 0.262
B50: 15 años o más | C50: Adultos | E50: 0.583

Sheet COUNTRY_INFO
A1: INFORMACIÓN DEL PAÍS
A2: Estructura administrativa, población por grupo de edad, estatus de endemicidad, intervenciones planeadas e intervenciones implementadas
A4: TOTAL | D4: =SUM(D$9:D$1000) -> 188134 | E4: =SUM(E$9:E$1000) -> 23141 | F4: =SUM(F$9:F$1000) -> 49291 | G4: =SUM(G$9:G$1000) -> 109682 | L4: =SUM(L$9:L$1000) -> 188134 | M4: =SUM(M$9:M$1000) -> 0 | N4: =SUM(N$9:N$1000) -> 72432 | O4: =SUM(O$9:O$1000) -> 35677.97
A6: Estructura Administrativa del País | D6: Población | H6: Endemicidad | L6: Población requiriendo QP | P6: Número de rondas de tratamiento planeadas por año | T6: QP implementada | V6: Haga click para ver la estrategia recomendada
A7: País | B7: Provincia/Estado | C7: Distrito/municipio | D7: Total | E7: PreESC | F7: ESC | G7: Adultos | H7: FL | I7: Onco | J7: HTS | K7: ESQ | L7: FL | M7: Onco | N7: HTS | O7: ESQ | P7: FL | Q7: Onco | R7: HTS | S7: ESQ | T7: RONDA 1 | U7: RONDA 2 | X7: IU_ID | Y7: IU_Name
A9: =IF(INTRO!$E$34<>0,INTRO!$E$34,"") -> STP | B9: ST | C9: Agua Grande | D9: 73648 | E9: =IF(INTRO!$E$48="","",ROUND($D9*INTRO!$E$48,0)) -> 9059 | F9: =IF(INTRO!$E$49="","",ROUND($D9*INTRO!$E$49,0)) -> 19296 | G9: =IF(INTRO!$E$50="","",ROUND($D9*INTRO!$E$50,0)) -> 42937 | H9: 1 | J9: 3 | K9: 2 | L9: =IF(INTRO!$E$38="Endémico", IF($H9>0, IF($H9=4,"Desconocido", IF($H9=99,"Suspendida", $D9)), 0),"No requerido") -> 73648 | M9: =IF(INTRO!$E$40="Endémico", IF($I9>0, IF($I9=4,"Desconocido",IF($I9=99,"Suspendida", $D9)), 0),"No requerido") -> No requerido | N9: =IF(INTRO!$E$42="Endémico", IF(AND($J9>1,$J9<5), IF($J9=4, "Desconocido", E9+F9), 0),"No requerido") -> 28355 | O9: =IF(INTRO!$E$44="Endémico", IF(AND($K9>0,$K9<5), IF($K9=4,"Desconocido", IF($K9=1, $F9*0.33, IF($K9=2, $F9*0.5+$G9*0.2, SUM(F9:G9)))), 0),"No requerido") -> 18235.4 | P9: 1 | R9: 2 | S9: 1 | T9: T1 (PZQ+ALB/MBD) | V9: MDA 2 | W9: T1 | X9: 39143 | Y9: Agua Grande | AA9: =Y9=C9 -> TRUE
A10: =IF(INTRO!$E$34<>0,INTRO!$E$34,"") -> STP | B10: ST | C10: Me-zochi | D10: 46818 | E10: =IF(INTRO!$E$48="","",ROUND($D10*INTRO!$E$48,0)) -> 5759 | F10: =IF(INTRO!$E$49="","",ROUND($D10*INTRO!$E$49,0)) -> 12266 | G10: =IF(INTRO!$E$50="","",ROUND($D10*INTRO!$E$50,0)) -> 27295 | H10: 1 | J10: 3 | K10: 2 | L10: =IF(INTRO!$E$38="Endémico", IF($H10>0, IF($H10=4,"Desconocido", IF($H10=99,"Suspendida", $D10)), 0),"No requerido") -> 46818 | M10: =IF(INTRO!$E$40="Endémico", IF($I10>0, IF($I10=4,"Desconocido",IF($I10=99,"Suspendida", $D10)), 0),"No requerido") -> No requerido | N10: =IF(INTRO!$E$42="Endémico", IF(AND($J10>1,$J10<5), IF($J10=4, "Desconocido", E10+F10), 0),"No requerido") -> 18025 | O10: =IF(INTRO!$E$44="Endémico", IF(AND($K10>0,$K10<5), IF($K10=4,"Desconocido", IF($K10=1, $F10*0.33, IF($K10=2, $F10*0.5+$G10*0.2, SUM(F10:G10)))), 0),"No requerido") -> 11592 | P10: 1 | R10: 2 | S10: 1 | T10: T1 (PZQ+ALB/MBD) | V10: MDA 2 | W10: T1 | X10: 39148 | Y10: Me-zochi | AA10: =Y10=C10 -> TRUE
A11: =IF(INTRO!$E$34<>0,INTRO!$E$34,"") -> STP | B11: ST | C11: Lobata | D11: 20309 | E11: =IF(INTRO!$E$48="","",ROUND($D11*INTRO!$E$48,0)) -> 2498 | F11: =IF(INTRO!$E$49="","",ROUND($D11*INTRO!$E$49,0)) -> 5321 | G11: =IF(INTRO!$E$50="","",ROUND($D11*INTRO!$E$50,0)) -> 11840 | H11: 1 | J11: 3 | K11: 1 | L11: =IF(INTRO!$E$38="Endémico", IF($H11>0, IF($H11=4,"Desconocido", IF($H11=99,"Suspendida", $D11)), 0),"No requerido") -> 20309 | M11: =IF(INTRO!$E$40="Endémico", IF($I11>0, IF($I11=4,"Desconocido",IF($I11=99,"Suspendida", $D11)), 0),"No requerido") -> No requerido | N11: =IF(INTRO!$E$42="Endémico", IF(AND($J11>1,$J11<5), IF($J11=4, "Desconocido", E11+F11), 0),"No requerido") -> 7819 | O11: =IF(INTRO!$E$44="Endémico", IF(AND($K11>0,$K11<5), IF($K11=4,"Desconocido", IF($K11=1, $F11*0.33, IF($K11=2, $F11*0.5+$G11*0.2, SUM(F11:G11)))), 0),"No requerido") -> 1755.93 | P11: 1 | R11: 2 | S11: 0 | T11: T1 (PZQ+ALB/MBD) | V11: MDA 2 | W11: T1 | X11: 39147 | Y11: Lobata | AA11: TRUE
A12: =IF(INTRO!$E$34<>0,INTRO!$E$34,"") -> STP | B12: ST | C12: Cantagalo | D12: 18010 | E12: =IF(INTRO!$E$48="","",ROUND($D12*INTRO!$E$48,0)) -> 2215 | F12: =IF(INTRO!$E$49="","",ROUND($D12*INTRO!$E$49,0)) -> 4719 | G12: =IF(INTRO!$E$50="","",ROUND($D12*INTRO!$E$50,0)) -> 10500 | H12: 1 | J12: 3 | K12: 1 | L12: =IF(INTRO!$E$38="Endémico", IF($H12>0, IF($H12=4,"Desconocido", IF($H12=99,"Suspendida", $D12)), 0),"No requerido") -> 18010 | M12: =IF(INTRO!$E$40="Endémico", IF($I12>0, IF($I12=4,"Desconocido",IF($I12=99,"Suspendida", $D12)), 0),"No requerido") -> No requerido | N12: =IF(INTRO!$E$42="Endémico", IF(AND($J12>1,$J12<5), IF($J12=4, "Desconocido", E12+F12), 0),"No requerido") -> 6934 | O12: =IF(INTRO!$E$44="Endémico", IF(AND($K12>0,$K12<5), IF($K12=4,"Desconocido", IF($K12=1, $F12*0.33, IF($K12=2, $F12*0.5+$G12*0.2, SUM(F12:G12)))), 0),"No requerido") -> 1557.27 | P12: 1 | R12: 2 | S12: 0 | T12: T1 (PZQ+ALB/MBD) | V12: MDA 2 | W12: T1 | X12: 39144 | Y12: Cantagalo | AA12: TRUE
A13: =IF(INTRO!$E$34<>0,INTRO!$E$34,"") -> STP | B13: ST | C13: Lemba | D13: 15558 | E13: =IF(INTRO!$E$48="","",ROUND($D13*INTRO!$E$48,0)) -> 1914 | F13: =IF(INTRO!$E$49="","",ROUND($D13*INTRO!$E$49,0)) -> 4076 | G13: =IF(INTRO!$E$50="","",ROUND($D13*INTRO!$E$50,0)) -> 9070 | H13: 1 | J13: 3 | K13: 1 | L13: =IF(INTRO!$E$38="Endémico", IF($H13>0, IF($H13=4,"Desconocido", IF($H13=99,"Suspendida", $D13)), 0),"No requerido") -> 15558 | M13: =IF(INTRO!$E$40="Endémico", IF($I13>0, IF($I13=4,"Desconocido",IF($I13=99,"Suspendida", $D13)), 0),"No requerido") -> No requerido | N13: =IF(INTRO!$E$42="Endémico", IF(AND($J13>1,$J13<5), IF($J13=4, "Desconocido", E13+F13), 0),"No requerido") -> 5990 | O13: =IF(INTRO!$E$44="Endémico", IF(AND($K13>0,$K13<5), IF($K13=4,"Desconocido", IF($K13=1, $F13*0.33, IF($K13=2, $F13*0.5+$G13*0.2, SUM(F13:G13)))), 0),"No requerido") -> 1345.08 | P13: 1 | R13: 2 | S13: 0 | T13: T1 (PZQ+ALB/MBD) | V13: MDA 2 | W13: T1 | X13: 39146 | Y13: Lemba | AA13: TRUE
A14: =IF(INTRO!$E$34<>0,INTRO!$E$34,"") -> STP | B14: ST | C14: Cauè | D14: 6162 | E14: =IF(INTRO!$E$48="","",ROUND($D14*INTRO!$E$48,0)) -> 758 | F14: =IF(INTRO!$E$49="","",ROUND($D14*INTRO!$E$49,0)) -> 1614 | G14: =IF(INTRO!$E$50="","",ROUND($D14*INTRO!$E$50,0)) -> 3592 | H14: 1 | J14: 3 | K14: 1 | L14: =IF(INTRO!$E$38="Endémico", IF($H14>0, IF($H14=4,"Desconocido", IF($H14=99,"Suspendida", $D14)), 0),"No requerido") -> 6162 | M14: =IF(INTRO!$E$40="Endémico", IF($I14>0, IF($I14=4,"Desconocido",IF($I14=99,"Suspendida", $D14)), 0),"No requerido") -> No requerido | N14: =IF(INTRO!$E$42="Endémico", IF(AND($J14>1,$J14<5), IF($J14=4, "Desconocido", E14+F14), 0),"No requerido") -> 2372 | O14: =IF(INTRO!$E$44="Endémico", IF(AND($K14>0,$K14<5), IF($K14=4,"Desconocido", IF($K14=1, $F14*0.33, IF($K14=2, $F14*0.5+$G14*0.2, SUM(F14:G14)))), 0),"No requerido") -> 532.62 | P14: 1 | R14: 2 | S14: 0 | T14: T1 (PZQ+ALB/MBD) | V14: MDA 2 | W14: T1 | X14: 39145 | Y14: Cauè | AA14: TRUE
A15: =IF(INTRO!$E$34<>0,INTRO!$E$34,"") -> STP | B15: Principe | C15: Píncipe | D15: 7629 | E15: =IF(INTRO!$E$48="","",ROUND($D15*INTRO!$E$48,0)) -> 938 | F15: =IF(INTRO!$E$49="","",ROUND($D15*INTRO!$E$49,0)) -> 1999 | G15: =IF(INTRO!$E$50="","",ROUND($D15*INTRO!$E$50,0)) -> 4448 | H15: 1 | J15: 3 | K15: 1 | L15: =IF(INTRO!$E$38="Endémico", IF($H15>0, IF($H15=4,"Desconocido", IF($H15=99,"Suspendida", $D15)), 0),"No requerido") -> 7629 | M15: =IF(INTRO!$E$40="Endémico", IF($I15>0, IF($I15=4,"Desconocido",IF($I15=99,"Suspendida", $D15)), 0),"No requerido") -> No requerido | N15: =IF(INTRO!$E$42="Endémico", IF(AND($J15>1,$J15<5), IF($J15=4, "Desconocido", E15+F15), 0),"No requerido") -> 2937 | O15: =IF(INTRO!$E$44="Endémico", IF(AND($K15>0,$K15<5), IF($K15=4,"Desconocido", IF($K15=1, $F15*0.33, IF($K15=2, $F15*0.5+$G15*0.2, SUM(F15:G15)))), 0),"No requerido") -> 659.67 | P15: 1 | R15: 2 | S15: 0 | T15: T1 (PZQ+ALB/MBD) | V15: MDA 2 | W15: T1 | X15: 39142 | Y15: Píncipe | AA15: TRUE

Sheet MDA1 (hidden)
A1: MDA 1 - Ivermectina (IVM) y Albendazol (ALB)
A2: Estructura administrativa, población requiriendo QP por grupo de edad, población tratada por grupo de edad y cobertura
A4: TOTAL | G4: =SUM(G$9:G$1000) -> 0 | H4: =SUM(H$9:H$1000) -> 0 | I4: =SUM(I$9:I$1000) -> 0 | K4: =SUM(K$9:K$1000) -> 0 | L4: =SUM(L$9:L$1000) -> 0 | M4: =SUM(M$9:M$1000) -> 0 | O4: =IF(G4<>0, IF(K4/G4*100=0, "-", K4/G4*100), " ") ->  | P4: =IF(H4<>0, IF(L4/H4*100=0, "-", L4/H4*100), " ") ->  | Q4: =IF(I4<>0, IF(M4/I4*100=0, "-", M4/I4*100), " ") -> 
A6: Estructura administrativa del país | D6: QP implementada | E6: Fecha | F6: Población objetivo para MDA 1 | J6: Población tratada | N6: Cobertura del programa (%)
A7: País | B7: Provincia/Estado | C7: Distrito/municipio | F7: PreESC | G7: ESC | H7: Adultos | I7: Total | J7: PreESC | K7: ESC | L7: Adultos | M7: Total | N7: PreESC | O7: ESC | P7: Adultos | Q7: Total
A9: =IF(COUNTRY_INFO!A9=0," ",COUNTRY_INFO!A9) -> STP | B9: =IF(COUNTRY_INFO!B9=0," ",COUNTRY_INFO!B9) -> ST | C9: =IF(COUNTRY_INFO!C9=0," ",COUNTRY_INFO!C9) -> Agua Grande | D9: =IF(COUNTRY_INFO!$T$9:$T$1000="MDA1 (IVM+ALB)", COUNTRY_INFO!$T$9:$T$1000, " ") ->  | I9: =SUM(F9:H9) -> 0 | M9: =SUM(J9:L9) -> 0 | O9: =IF(G9<>0, IF(K9/G9*100=0, "-", K9/G9*100), " ") ->  | P9: =IF(H9<>0, IF(L9/H9*100=0, "-", L9/H9*100), " ") -> 
A10: =IF(COUNTRY_INFO!A10=0," ",COUNTRY_INFO!A10) -> STP | B10: =IF(COUNTRY_INFO!B10=0," ",COUNTRY_INFO!B10) -> ST | C10: =IF(COUNTRY_INFO!C10=0," ",COUNTRY_INFO!C10) -> Me-zochi | D10: =IF(COUNTRY_INFO!$T$9:$T$1000="MDA1 (IVM+ALB)", COUNTRY_INFO!$T$9:$T$1000, " ") ->  | I10: =SUM(F10:H10) -> 0 | M10: =SUM(J10:L10) -> 0 | O10: =IF(G10<>0, IF(K10/G10*100=0, "-", K10/G10*100), " ") ->  | P10: =IF(H10<>0, IF(L10/H10*100=0, "-", L10/H10*100), " ") ->  | Q10: =IF(I10<>0, IF(M10/I10*100=0, "-", M10/I10*100), " ") -> 
A11: =IF(COUNTRY_INFO!A11=0," ",COUNTRY_INFO!A11) -> STP | B11: =IF(COUNTRY_INFO!B11=0," ",COUNTRY_INFO!B11) -> ST | C11: =IF(COUNTRY_INFO!C11=0," ",COUNTRY_INFO!C11) -> Lobata | D11: =IF(COUNTRY_INFO!$T$9:$T$1000="MDA1 (IVM+ALB)", COUNTRY_INFO!$T$9:$T$1000, " ") ->  | I11: 0 | M11: 0
A12: =IF(COUNTRY_INFO!A12=0," ",COUNTRY_INFO!A12) -> STP | B12: =IF(COUNTRY_INFO!B12=0," ",COUNTRY_INFO!B12) -> ST | C12: =IF(COUNTRY_INFO!C12=0," ",COUNTRY_INFO!C12) -> Cantagalo | D12: =IF(COUNTRY_INFO!$T$9:$T$1000="MDA1 (IVM+ALB)", COUNTRY_INFO!$T$9:$T$1000, " ") ->  | I12: 0 | M12: 0
A13: =IF(COUNTRY_INFO!A13=0," ",COUNTRY_INFO!A13) -> STP | B13: =IF(COUNTRY_INFO!B13=0," ",COUNTRY_INFO!B13) -> ST | C13: =IF(COUNTRY_INFO!C13=0," ",COUNTRY_INFO!C13) -> Lemba | D13: =IF(COUNTRY_INFO!$T$9:$T$1000="MDA1 (IVM+ALB)", COUNTRY_INFO!$T$9:$T$1000, " ") ->  | I13: 0 | M13: 0
A14: =IF(COUNTRY_INFO!A14=0," ",COUNTRY_INFO!A14) -> STP | B14: =IF(COUNTRY_INFO!B14=0," ",COUNTRY_INFO!B14) -> ST | C14: =IF(COUNTRY_INFO!C14=0," ",COUNTRY_INFO!C14) -> Cauè | D14: =IF(COUNTRY_INFO!$T$9:$T$1000="MDA1 (IVM+ALB)", COUNTRY_INFO!$T$9:$T$1000, " ") ->  | I14: 0 | M14: 0
A15: =IF(COUNTRY_INFO!A15=0," ",COUNTRY_INFO!A15) -> STP | B15: =IF(COUNTRY_INFO!B15=0," ",COUNTRY_INFO!B15) -> Principe | C15: =IF(COUNTRY_INFO!C15=0," ",COUNTRY_INFO!C15) -> Píncipe | D15: =IF(COUNTRY_INFO!$T$9:$T$1000="MDA1 (IVM+ALB)", COUNTRY_INFO!$T$9:$T$1000, " ") ->  | I15: 0 | M15: 0

Sheet MDA2
A1: MDA 2 - Citrato de dietilcarbamazina (DEC) + Albendazol (ALB)
A2: Estructura administrativa, población requiriendo QP por grupo de edad, población tratada por grupo de edad y cobertura
A4: TOTAL | F4: =SUM(F$9:F$1000) -> 0 | G4: =SUM(G$9:G$1000) -> 0 | H4: 0 | I4: 0 | J4: 0 | K4: 0 | L4: 0 | M4: 0 | N4: =IF(F4<>0, IF(J4/F4*100=0, "-", J4/F4*100), " ") ->  | O4: =IF(G4<>0, IF(K4/G4*100=0, "-", K4/G4*100), " ") ->  | P4: =IF(H4<>0, IF(L4/H4*100=0, "-", L4/H4*100), " ") ->  | Q4: =IF(I4<>0, IF(M4/I4*100=0, "-", M4/I4*100), " ") -> 
A6: Estructura administrativa del país | D6: QP implementada | E6: Fecha | F6: Población objetivo para MDA 2 | J6: Población tratada | N6: Cobertura del programa (%)
A7: País | B7: Provincia/Estado | C7: Distrito/municipio | F7: PreESC | G7: ESC | H7: Adultos | I7: Total | J7: PreESC | K7: ESC | L7: Adultos | M7: Total | N7: PreESC | O7: ESC | P7: Adultos | Q7: Total
A9: =IF(COUNTRY_INFO!A9=0," ",COUNTRY_INFO!A9) -> STP | B9: =IF(COUNTRY_INFO!B9=0," ",COUNTRY_INFO!B9) -> ST | C9: =IF(COUNTRY_INFO!C9=0," ",COUNTRY_INFO!C9) -> Agua Grande | D9: =IF(COUNTRY_INFO!$T$9:$T$1000="MDA2 (DEC+ALB)", COUNTRY_INFO!$T$9:$T$1000, " ") ->  | I9: =SUM(F9:H9) -> 0 | M9: =SUM(J9:L9) -> 0 | N9: =IF(F9<>0, IF(J9/F9*100=0, "-", J9/F9*100), " ") -> 
A10: =IF(COUNTRY_INFO!A10=0," ",COUNTRY_INFO!A10) -> STP | B10: =IF(COUNTRY_INFO!B10=0," ",COUNTRY_INFO!B10) -> ST | C10: =IF(COUNTRY_INFO!C10=0," ",COUNTRY_INFO!C10) -> Me-zochi | D10: =IF(COUNTRY_INFO!$T$9:$T$1000="MDA2 (DEC+ALB)", COUNTRY_INFO!$T$9:$T$1000, " ") ->  | I10: =SUM(F10:H10) -> 0 | M10: =SUM(J10:L10) -> 0 | N10: =IF(F10<>0, IF(J10/F10*100=0, "-", J10/F10*100), " ") ->  | O10: =IF(G10<>0, IF(K10/G10*100=0, "-", K10/G10*100), " ") ->  | P10: =IF(H10<>0, IF(L10/H10*100=0, "-", L10/H10*100), " ") ->  | Q10: =IF(I10<>0, IF(M10/I10*100=0, "-", M10/I10*100), " ") -> 
A11: =IF(COUNTRY_INFO!A11=0," ",COUNTRY_INFO!A11) -> STP | B11: =IF(COUNTRY_INFO!B11=0," ",COUNTRY_INFO!B11) -> ST | C11: =IF(COUNTRY_INFO!C11=0," ",COUNTRY_INFO!C11) -> Lobata | D11: =IF(COUNTRY_INFO!$T$9:$T$1000="MDA2 (DEC+ALB)", COUNTRY_INFO!$T$9:$T$1000, " ") ->  | I11: 0 | M11: 0
A12: =IF(COUNTRY_INFO!A12=0," ",COUNTRY_INFO!A12) -> STP | B12: =IF(COUNTRY_INFO!B12=0," ",COUNTRY_INFO!B12) -> ST | C12: =IF(COUNTRY_INFO!C12=0," ",COUNTRY_INFO!C12) -> Cantagalo | D12: =IF(COUNTRY_INFO!$T$9:$T$1000="MDA2 (DEC+ALB)", COUNTRY_INFO!$T$9:$T$1000, " ") ->  | I12: 0 | M12: 0
A13: =IF(COUNTRY_INFO!A13=0," ",COUNTRY_INFO!A13) -> STP | B13: =IF(COUNTRY_INFO!B13=0," ",COUNTRY_INFO!B13) -> ST | C13: =IF(COUNTRY_INFO!C13=0," ",COUNTRY_INFO!C13) -> Lemba | D13: =IF(COUNTRY_INFO!$T$9:$T$1000="MDA2 (DEC+ALB)", COUNTRY_INFO!$T$9:$T$1000, " ") ->  | I13: 0 | M13: 0
A14: =IF(COUNTRY_INFO!A14=0," ",COUNTRY_INFO!A14) -> STP | B14: =IF(COUNTRY_INFO!B14=0," ",COUNTRY_INFO!B14) -> ST | C14: =IF(COUNTRY_INFO!C14=0," ",COUNTRY_INFO!C14) -> Cauè | D14: =IF(COUNTRY_INFO!$T$9:$T$1000="MDA2 (DEC+ALB)", COUNTRY_INFO!$T$9:$T$1000, " ") ->  | I14: 0 | M14: 0
A15: =IF(COUNTRY_INFO!A15=0," ",COUNTRY_INFO!A15) -> STP | B15: =IF(COUNTRY_INFO!B15=0," ",COUNTRY_INFO!B15) -> Principe | C15: =IF(COUNTRY_INFO!C15=0," ",COUNTRY_INFO!C15) -> Píncipe | D15: =IF(COUNTRY_INFO!$T$9:$T$1000="MDA2 (DEC+ALB)", COUNTRY_INFO!$T$9:$T$1000, " ") ->  | I15: 0 | M15: 0

Sheet MDA3 (hidden)
A1: MDA 3 - Ivermectina (IVM)
A2: Estructura administrativa, población requiriendo QP por grupo de edad, población tratada por grupo de edad y cobertura
A4: TOTAL | F4: =SUM(F$9:F$1000) -> 0 | G4: 0 | H4: 0 | I4: 0 | J4: 0 | K4: 0 | L4: 0 | M4: 0 | N4: 0 | O4: 0 | P4: 0 | Q4: 0 | R4: =IF(F4<>0, IF(O4/F4*100=0, "-", O4/F4*100), " ") ->  | S4: =IF(G4<>0, IF(P4/G4*100=0, "-", P4/G4*100), " ") ->  | T4: =IF(H4<>0, IF(Q4/H4*100=0, "-", Q4/H4*100), " ") -> 
A6: Estructura administrativa del país | D6: QP implementada | E6: Fecha | F6: Población objetivo para MDA 3 | I6: Población tratada - 1a ronda | L6: Población tratada - 2a ronda | O6: Población tratada | R6: Cobertura del programa (%)
A7: País | B7: Provincia/Estado | C7: Distrito/municipio | F7: ESC | G7: Adultos | H7: Total | I7: ESC | J7: Adultos | K7: Total | L7: ESC | M7: Adultos | N7: Total | O7: ESC | P7: Adultos | Q7: Total | R7: ESC | S7: Adultos | T7: Total
A9: =IF(COUNTRY_INFO!A9=0," ",COUNTRY_INFO!A9) -> STP | B9: =IF(COUNTRY_INFO!B9=0," ",COUNTRY_INFO!B9) -> ST | C9: =IF(COUNTRY_INFO!C9=0," ",COUNTRY_INFO!C9) -> Agua Grande | D9: =IF(COUNTRY_INFO!$T$9:$T$1000="MDA3 (IVM)", COUNTRY_INFO!$T$9:$T$1000, " ") ->  | H9: =SUM(F9:G9) -> 0 | K9: =SUM(I9:J9) -> 0 | N9: =SUM(L9:M9) -> 0 | O9: =MAX(I9,L9) -> 0 | P9: 0 | Q9: =SUM(O9:P9) -> 0 | R9: =IF(F9<>0, IF(MAX(I9,L9)/F9*100=0, "-", MAX(I9,L9)/F9*100), " ") ->  | T9: =IF(H9<>0, IF((MAX(I9,L9)+MAX(J9,M9))/H9*100=0, "-",(MAX(I9,L9)+MAX(J9,M9))/H9*100), " ") -> 
A10: =IF(COUNTRY_INFO!A10=0," ",COUNTRY_INFO!A10) -> STP | B10: =IF(COUNTRY_INFO!B10=0," ",COUNTRY_INFO!B10) -> ST | C10: =IF(COUNTRY_INFO!C10=0," ",COUNTRY_INFO!C10) -> Me-zochi | D10: =IF(COUNTRY_INFO!$T$9:$T$1000="MDA3 (IVM)", COUNTRY_INFO!$T$9:$T$1000, " ") ->  | H10: =SUM(F10:G10) -> 0 | K10: =SUM(I10:J10) -> 0 | N10: =SUM(L10:M10) -> 0 | O10: =MAX(I10,L10) -> 0 | P10: =MAX(J10,M10) -> 0 | Q10: =SUM(O10:P10) -> 0 | R10: =IF(F10<>0, IF(MAX(I10,L10)/F10*100=0, "-", MAX(I10,L10)/F10*100), " ") ->  | S10: =IF(G10<>0, IF(MAX(J10,M10)/G10*100=0, "-", MAX(J10,M10)/G10*100), " ") ->  | T10: =IF(H10<>0, IF((MAX(I10,L10)+MAX(J10,M10))/H10*100=0, "-",(MAX(I10,L10)+MAX(J10,M10))/H10*100), " ") -> 
A11: =IF(COUNTRY_INFO!A11=0," ",COUNTRY_INFO!A11) -> STP | B11: =IF(COUNTRY_INFO!B11=0," ",COUNTRY_INFO!B11) -> ST | C11: =IF(COUNTRY_INFO!C11=0," ",COUNTRY_INFO!C11) -> Lobata | D11: =IF(COUNTRY_INFO!$T$9:$T$1000="MDA3 (IVM)", COUNTRY_INFO!$T$9:$T$1000, " ") ->  | H11: 0 | K11: 0 | N11: 0 | O11: 0 | P11: 0 | Q11: 0
A12: =IF(COUNTRY_INFO!A12=0," ",COUNTRY_INFO!A12) -> STP | B12: =IF(COUNTRY_INFO!B12=0," ",COUNTRY_INFO!B12) -> ST | C12: =IF(COUNTRY_INFO!C12=0," ",COUNTRY_INFO!C12) -> Cantagalo | D12: =IF(COUNTRY_INFO!$T$9:$T$1000="MDA3 (IVM)", COUNTRY_INFO!$T$9:$T$1000, " ") ->  | H12: 0 | K12: 0 | N12: 0 | O12: 0 | P12: 0 | Q12: 0
A13: =IF(COUNTRY_INFO!A13=0," ",COUNTRY_INFO!A13) -> STP | B13: =IF(COUNTRY_INFO!B13=0," ",COUNTRY_INFO!B13) -> ST | C13: =IF(COUNTRY_INFO!C13=0," ",COUNTRY_INFO!C13) -> Lemba | D13: =IF(COUNTRY_INFO!$T$9:$T$1000="MDA3 (IVM)", COUNTRY_INFO!$T$9:$T$1000, " ") ->  | H13: 0 | K13: 0 | N13: 0 | O13: 0 | P13: 0 | Q13: 0
A14: =IF(COUNTRY_INFO!A14=0," ",COUNTRY_INFO!A14) -> STP | B14: =IF(COUNTRY_INFO!B14=0," ",COUNTRY_INFO!B14) -> ST | C14: =IF(COUNTRY_INFO!C14=0," ",COUNTRY_INFO!C14) -> Cauè | D14: =IF(COUNTRY_INFO!$T$9:$T$1000="MDA3 (IVM)", COUNTRY_INFO!$T$9:$T$1000, " ") ->  | H14: 0 | K14: 0 | N14: 0 | O14: 0 | P14: 0 | Q14: 0
A15: =IF(COUNTRY_INFO!A15=0," ",COUNTRY_INFO!A15) -> STP | B15: =IF(COUNTRY_INFO!B15=0," ",COUNTRY_INFO!B15) -> Principe | C15: =IF(COUNTRY_INFO!C15=0," ",COUNTRY_INFO!C15) -> Píncipe | D15: =IF(COUNTRY_INFO!$T$9:$T$1000="MDA3 (IVM)", COUNTRY_INFO!$T$9:$T$1000, " ") ->  | H15: 0 | K15: 0 | N15: 0 | O15: 0 | P15: 0 | Q15: 0

Sheet T1
A1: T 1 - Prazicuantel (PZQ) y Albendazol (ALB) o Mebendazol (MBD)
A2: Estructura administrativa, población requiriendo QP por grupo de edad, población tratada por grupo de edad y cobertura
A4: TOTAL | G4: =SUM(G$9:G$1000) -> 0 | H4: 36601 | I4: 36601 | J4: 0 | K4: =SUM(K$9:K$1000) -> 36601 | L4: 0 | M4: 32201 | N4: 0 | O4: 32201 | P4: =IF(G4<>0, IF(L4/G4*100=0, "-", L4/G4*100), " ") ->  | Q4: =IF(OR(I4<>0,H4<>0), IF(M4/MAX(H4,I4)*100=0, "-", M4/MAX(H4,I4)*100), " ") -> 87.97847053 | R4: =IF(J4<>0, IF(N4/J4*100=0, "-", N4/J4*100), " ") ->  | S4: =IF(K4<>0, IF(O4/K4*100=0, "-", O4/K4*100), " ") -> 87.97847053
A6: Estructura administrativa del país | D6: QP implementada | E6: Medica-mento | F6: Fecha | G6: Población objetivo para T1 | L6: Población tratada | P6: Cobertura del programa (%)
A7: País | B7: Provincia/Estado | C7: Distrito/municipio | G7: PreESC (ALB) | H7: ESC (ALB) | I7: ESC (PZQ) | J7: Adultos (PZQ) | K7: Total | L7: PreESC | M7: ESC | N7: Adultos | O7: Total | P7: PreESC | Q7: ESC | R7: Adultos | S7: Total
A9: =IF(COUNTRY_INFO!A9=0," ",COUNTRY_INFO!A9) -> STP | B9: =IF(COUNTRY_INFO!B9=0," ",COUNTRY_INFO!B9) -> ST | C9: =IF(COUNTRY_INFO!C9=0," ",COUNTRY_INFO!C9) -> Agua Grande | D9: =IF(OR(COUNTRY_INFO!$T$9:$T$1000="T1 (PZQ+ALB/MBD)",COUNTRY_INFO!$U$9:$U$1000="T1 (PZQ+ALB/MBD)"), "T1 (PZQ+ALB/MBD)", " ") -> T1 (PZQ+ALB/MBD) | E9: PZQ+MBD | F9: Nov/Dec 2016 | H9: 14288 | I9: 14288 | K9: =MAX(H9:I9)+G9+J9 -> 14288 | M9: 10719 | O9: 10719 | P9: =IF(G9<>0, IF(L9/G9*100=0, "-", L9/G9*100), " ") ->  | Q9: =IF(OR(I9<>0,H9<>0), IF(M9/MAX(H9,I9)*100=0, "-", M9/MAX(H9,I9)*100), " ") -> 75.02099664 | R9: =IF(J9<>0, IF(N9/J9*100=0, "-", N9/J9*100), " ") ->  | S9: 75.02099664
A10: =IF(COUNTRY_INFO!A10=0," ",COUNTRY_INFO!A10) -> STP | B10: =IF(COUNTRY_INFO!B10=0," ",COUNTRY_INFO!B10) -> ST | C10: =IF(COUNTRY_INFO!C10=0," ",COUNTRY_INFO!C10) -> Me-zochi | D10: =IF(OR(COUNTRY_INFO!$T$9:$T$1000="T1 (PZQ+ALB/MBD)",COUNTRY_INFO!$U$9:$U$1000="T1 (PZQ+ALB/MBD)"), "T1 (PZQ+ALB/MBD)", " ") -> T1 (PZQ+ALB/MBD) | E10: PZQ+MBD | F10: Nov/Dec 2016 | H10: 8716 | I10: 8716 | K10: =MAX(H10:I10)+G10+J10 -> 8716 | M10: 8050 | O10: 8050 | P10: =IF(G10<>0, IF(L10/G10*100=0, "-", L10/G10*100), " ") ->  | Q10: =IF(OR(I10<>0,H10<>0), IF(M10/MAX(H10,I10)*100=0, "-", M10/MAX(H10,I10)*100), " ") -> 92.35888022 | R10: =IF(J10<>0, IF(N10/J10*100=0, "-", N10/J10*100), " ") ->  | S10: =IF(K10<>0, IF(O10/K10*100=0, "-", O10/K10*100), " ") -> 92.35888022
A11: =IF(COUNTRY_INFO!A11=0," ",COUNTRY_INFO!A11) -> STP | B11: =IF(COUNTRY_INFO!B11=0," ",COUNTRY_INFO!B11) -> ST | C11: =IF(COUNTRY_INFO!C11=0," ",COUNTRY_INFO!C11) -> Lobata | D11: =IF(OR(COUNTRY_INFO!$T$9:$T$1000="T1 (PZQ+ALB/MBD)",COUNTRY_INFO!$U$9:$U$1000="T1 (PZQ+ALB/MBD)"), "T1 (PZQ+ALB/MBD)", " ") -> T1 (PZQ+ALB/MBD) | E11: PZQ+MBD | F11: Nov/Dec 2016 | H11: 3870 | I11: 3870 | K11: 3870 | M11: 3941 | O11: 3941 | Q11: 101.8346253 | S11: 101.8346253
A12: =IF(COUNTRY_INFO!A12=0," ",COUNTRY_INFO!A12) -> STP | B12: =IF(COUNTRY_INFO!B12=0," ",COUNTRY_INFO!B12) -> ST | C12: =IF(COUNTRY_INFO!C12=0," ",COUNTRY_INFO!C12) -> Cantagalo | D12: =IF(OR(COUNTRY_INFO!$T$9:$T$1000="T1 (PZQ+ALB/MBD)",COUNTRY_INFO!$U$9:$U$1000="T1 (PZQ+ALB/MBD)"), "T1 (PZQ+ALB/MBD)", " ") -> T1 (PZQ+ALB/MBD) | E12: PZQ+MBD | F12: Nov/Dec 2016 | H12: 3262 | I12: 3262 | K12: 3262 | M12: 3244 | O12: 3244 | Q12: 99.44819129 | S12: 99.44819129
A13: =IF(COUNTRY_INFO!A13=0," ",COUNTRY_INFO!A13) -> STP | B13: =IF(COUNTRY_INFO!B13=0," ",COUNTRY_INFO!B13) -> ST | C13: =IF(COUNTRY_INFO!C13=0," ",COUNTRY_INFO!C13) -> Lemba | D13: =IF(OR(COUNTRY_INFO!$T$9:$T$1000="T1 (PZQ+ALB/MBD)",COUNTRY_INFO!$U$9:$U$1000="T1 (PZQ+ALB/MBD)"), "T1 (PZQ+ALB/MBD)", " ") -> T1 (PZQ+ALB/MBD) | E13: PZQ+MBD | F13: Nov/Dec 2016 | H13: 3215 | I13: 3215 | K13: 3215 | M13: 2927 | O13: 2927 | Q13: 91.04199067 | S13: 91.04199067
A14: =IF(COUNTRY_INFO!A14=0," ",COUNTRY_INFO!A14) -> STP | B14: =IF(COUNTRY_INFO!B14=0," ",COUNTRY_INFO!B14) -> ST | C14: =IF(COUNTRY_INFO!C14=0," ",COUNTRY_INFO!C14) -> Cauè | D14: =IF(OR(COUNTRY_INFO!$T$9:$T$1000="T1 (PZQ+ALB/MBD)",COUNTRY_INFO!$U$9:$U$1000="T1 (PZQ+ALB/MBD)"), "T1 (PZQ+ALB/MBD)", " ") -> T1 (PZQ+ALB/MBD) | E14: PZQ+MBD | F14: Nov/Dec 2016 | H14: 1383 | I14: 1383 | K14: 1383 | M14: 1256 | O14: 1256 | Q14: 90.81706435 | S14: 90.81706435
A15: =IF(COUNTRY_INFO!A15=0," ",COUNTRY_INFO!A15) -> STP | B15: =IF(COUNTRY_INFO!B15=0," ",COUNTRY_INFO!B15) -> Principe | C15: =IF(COUNTRY_INFO!C15=0," ",COUNTRY_INFO!C15) -> Píncipe | D15: =IF(OR(COUNTRY_INFO!$T$9:$T$1000="T1 (PZQ+ALB/MBD)",COUNTRY_INFO!$U$9:$U$1000="T1 (PZQ+ALB/MBD)"), "T1 (PZQ+ALB/MBD)", " ") -> T1 (PZQ+ALB/MBD) | E15: PZQ+MBD | F15: Nov/Dec 2016 | H15: 1867 | I15: 1867 | K15: 1867 | M15: 2064 | O15: 2064 | Q15: 110.5516872 | S15: 110.5516872

Sheet T2
A1: T 2 - Prazicuantel (PZQ)
A2: Estructura administrativa, población requiriendo QP por grupo de edad, población tratada por grupo de edad y cobertura
A4: TOTAL | F4: =SUM(F$9:F$1000) -> 0 | G4: 0 | H4: 0 | I4: 0 | J4: 0 | K4: 0 | L4: 0 | M4: 0 | N4: =IF(F4<>0, IF(J4/F4*100=0, "-", J4/F4*100), " ") ->  | O4: =IF(G4<>0, IF(K4/G4*100=0, "-", K4/G4*100), " ") ->  | P4: =IF(H4<>0, IF(L4/H4*100=0, "-", L4/H4*100), " ") ->  | Q4: =IF(I4<>0, IF(M4/I4*100=0, "-", M4/I4*100), " ") -> 
A6: Estructura administrativa del país | D6: QP implementada | E6: Fecha | F6: Población objetivo para T2 | J6: Población tratada | N6: Cobertura del programa (%)
A7: País | B7: Provincia/Estado | C7: Distrito/municipio | F7: PreESC | G7: ESC | H7: Adultos | I7: Total | J7: PreESC | K7: ESC | L7: Adultos | M7: Total | N7: PreESC | O7: ESC | P7: Adultos | Q7: Total
A9: =IF(COUNTRY_INFO!A9=0," ",COUNTRY_INFO!A9) -> STP | B9: =IF(COUNTRY_INFO!B9=0," ",COUNTRY_INFO!B9) -> ST | C9: =IF(COUNTRY_INFO!C9=0," ",COUNTRY_INFO!C9) -> Agua Grande | D9: =IF(OR(COUNTRY_INFO!$T$9:$T$1000="T2 (PZQ)",COUNTRY_INFO!$U$9:$U$1000="T2 (PZQ)"), "T2 (PZQ)", " ") ->  | I9: =SUM(F9:H9) -> 0 | M9: =SUM(J9:L9) -> 0 | N9: =IF(F9<>0, IF(J9/F9*100=0, "-", J9/F9*100), " ") -> 
A10: =IF(COUNTRY_INFO!A10=0," ",COUNTRY_INFO!A10) -> STP | B10: =IF(COUNTRY_INFO!B10=0," ",COUNTRY_INFO!B10) -> ST | C10: =IF(COUNTRY_INFO!C10=0," ",COUNTRY_INFO!C10) -> Me-zochi | D10: =IF(OR(COUNTRY_INFO!$T$9:$T$1000="T2 (PZQ)",COUNTRY_INFO!$U$9:$U$1000="T2 (PZQ)"), "T2 (PZQ)", " ") ->  | I10: =SUM(F10:H10) -> 0 | M10: =SUM(J10:L10) -> 0 | N10: =IF(F10<>0, IF(J10/F10*100=0, "-", J10/F10*100), " ") ->  | O10: =IF(G10<>0, IF(K10/G10*100=0, "-", K10/G10*100), " ") ->  | P10: =IF(H10<>0, IF(L10/H10*100=0, "-", L10/H10*100), " ") ->  | Q10: =IF(I10<>0, IF(M10/I10*100=0, "-", M10/I10*100), " ") -> 
A11: =IF(COUNTRY_INFO!A11=0," ",COUNTRY_INFO!A11) -> STP | B11: =IF(COUNTRY_INFO!B11=0," ",COUNTRY_INFO!B11) -> ST | C11: =IF(COUNTRY_INFO!C11=0," ",COUNTRY_INFO!C11) -> Lobata | D11: =IF(OR(COUNTRY_INFO!$T$9:$T$1000="T2 (PZQ)",COUNTRY_INFO!$U$9:$U$1000="T2 (PZQ)"), "T2 (PZQ)", " ") ->  | I11: 0 | M11: 0
A12: =IF(COUNTRY_INFO!A12=0," ",COUNTRY_INFO!A12) -> STP | B12: =IF(COUNTRY_INFO!B12=0," ",COUNTRY_INFO!B12) -> ST | C12: =IF(COUNTRY_INFO!C12=0," ",COUNTRY_INFO!C12) -> Cantagalo | D12: =IF(OR(COUNTRY_INFO!$T$9:$T$1000="T2 (PZQ)",COUNTRY_INFO!$U$9:$U$1000="T2 (PZQ)"), "T2 (PZQ)", " ") ->  | I12: 0 | M12: 0
A13: =IF(COUNTRY_INFO!A13=0," ",COUNTRY_INFO!A13) -> STP | B13: =IF(COUNTRY_INFO!B13=0," ",COUNTRY_INFO!B13) -> ST | C13: =IF(COUNTRY_INFO!C13=0," ",COUNTRY_INFO!C13) -> Lemba | D13: =IF(OR(COUNTRY_INFO!$T$9:$T$1000="T2 (PZQ)",COUNTRY_INFO!$U$9:$U$1000="T2 (PZQ)"), "T2 (PZQ)", " ") ->  | I13: 0 | M13: 0
A14: =IF(COUNTRY_INFO!A14=0," ",COUNTRY_INFO!A14) -> STP | B14: =IF(COUNTRY_INFO!B14=0," ",COUNTRY_INFO!B14) -> ST | C14: =IF(COUNTRY_INFO!C14=0," ",COUNTRY_INFO!C14) -> Cauè | D14: =IF(OR(COUNTRY_INFO!$T$9:$T$1000="T2 (PZQ)",COUNTRY_INFO!$U$9:$U$1000="T2 (PZQ)"), "T2 (PZQ)", " ") ->  | I14: 0 | M14: 0
A15: =IF(COUNTRY_INFO!A15=0," ",COUNTRY_INFO!A15) -> STP | B15: =IF(COUNTRY_INFO!B15=0," ",COUNTRY_INFO!B15) -> Principe | C15: =IF(COUNTRY_INFO!C15=0," ",COUNTRY_INFO!C15) -> Píncipe | D15: =IF(OR(COUNTRY_INFO!$T$9:$T$1000="T2 (PZQ)",COUNTRY_INFO!$U$9:$U$1000="T2 (PZQ)"), "T2 (PZQ)", " ") ->  | I15: 0 | M15: 0

Sheet T3_R1
A1: T 3 - Albendazol (ALB) o Mebendazol (MBD) - Ronda 1
A2: Estructura administrativa, población requiriendo QP por grupo de edad, población tratada por grupo de edad y cobertura
A4: TOTAL | G4: =SUM(G$9:G$1000) -> 0 | H4: 0 | I4: 0 | J4: 0 | K4: 0 | L4: 0 | M4: 0 | N4: 0 | O4: =IF(G4<>0, IF(K4/G4*100=0, "-", K4/G4*100), " ") ->  | P4: =IF(H4<>0, IF(L4/H4*100=0, "-", L4/H4*100), " ") ->  | Q4: =IF(I4<>0, IF(M4/I4*100=0, "-", M4/I4*100), " ") ->  | R4: =IF(J4<>0, IF(N4/J4*100=0, "-", N4/J4*100), " ") -> 
A6: Estructura administrativa del país | D6: QP implementada | E6: Medica-mento | F6: Fecha | G6: Población objetivo para T3 | K6: Población tratada | O6: Cobertura del programa (%)
A7: País | B7: Provincia/Estado | C7: Distrito/municipio | G7: PreESC | H7: ESC | I7: Adultos | J7: Total | K7: PreESC | L7: ESC | M7: Adultos | N7: Total | O7: PreESC | P7: ESC | Q7: Adultos | R7: Total
A9: =IF(COUNTRY_INFO!A9=0," ",COUNTRY_INFO!A9) -> STP | B9: =IF(COUNTRY_INFO!B9=0," ",COUNTRY_INFO!B9) -> ST | C9: =IF(COUNTRY_INFO!C9=0," ",COUNTRY_INFO!C9) -> Agua Grande | D9: =IF(OR(COUNTRY_INFO!$T$9:$T$1000="T3 (ALB/MBD)",COUNTRY_INFO!$U$9:$U$1000="T3 (ALB/MBD)"), "T3 (ALB/MBD)", " ") ->  | J9: =SUM(G9:I9) -> 0 | N9: =SUM(K9:M9) -> 0 | O9: =IF(G9<>0, IF(K9/G9*100=0, "-", K9/G9*100), " ") -> 
A10: =IF(COUNTRY_INFO!A10=0," ",COUNTRY_INFO!A10) -> STP | B10: =IF(COUNTRY_INFO!B10=0," ",COUNTRY_INFO!B10) -> ST | C10: =IF(COUNTRY_INFO!C10=0," ",COUNTRY_INFO!C10) -> Me-zochi | D10: =IF(OR(COUNTRY_INFO!$T$9:$T$1000="T3 (ALB/MBD)",COUNTRY_INFO!$U$9:$U$1000="T3 (ALB/MBD)"), "T3 (ALB/MBD)", " ") ->  | J10: =SUM(G10:I10) -> 0 | N10: =SUM(K10:M10) -> 0 | O10: =IF(G10<>0, IF(K10/G10*100=0, "-", K10/G10*100), " ") ->  | P10: =IF(H10<>0, IF(L10/H10*100=0, "-", L10/H10*100), " ") ->  | Q10: =IF(I10<>0, IF(M10/I10*100=0, "-", M10/I10*100), " ") ->  | R10: =IF(J10<>0, IF(N10/J10*100=0, "-", N10/J10*100), " ") -> 
A11: =IF(COUNTRY_INFO!A11=0," ",COUNTRY_INFO!A11) -> STP | B11: =IF(COUNTRY_INFO!B11=0," ",COUNTRY_INFO!B11) -> ST | C11: =IF(COUNTRY_INFO!C11=0," ",COUNTRY_INFO!C11) -> Lobata | D11: =IF(OR(COUNTRY_INFO!$T$9:$T$1000="T3 (ALB/MBD)",COUNTRY_INFO!$U$9:$U$1000="T3 (ALB/MBD)"), "T3 (ALB/MBD)", " ") ->  | J11: 0 | N11: 0
A12: =IF(COUNTRY_INFO!A12=0," ",COUNTRY_INFO!A12) -> STP | B12: =IF(COUNTRY_INFO!B12=0," ",COUNTRY_INFO!B12) -> ST | C12: =IF(COUNTRY_INFO!C12=0," ",COUNTRY_INFO!C12) -> Cantagalo | D12: =IF(OR(COUNTRY_INFO!$T$9:$T$1000="T3 (ALB/MBD)",COUNTRY_INFO!$U$9:$U$1000="T3 (ALB/MBD)"), "T3 (ALB/MBD)", " ") ->  | J12: 0 | N12: 0
A13: =IF(COUNTRY_INFO!A13=0," ",COUNTRY_INFO!A13) -> STP | B13: =IF(COUNTRY_INFO!B13=0," ",COUNTRY_INFO!B13) -> ST | C13: =IF(COUNTRY_INFO!C13=0," ",COUNTRY_INFO!C13) -> Lemba | D13: =IF(OR(COUNTRY_INFO!$T$9:$T$1000="T3 (ALB/MBD)",COUNTRY_INFO!$U$9:$U$1000="T3 (ALB/MBD)"), "T3 (ALB/MBD)", " ") ->  | J13: 0 | N13: 0
A14: =IF(COUNTRY_INFO!A14=0," ",COUNTRY_INFO!A14) -> STP | B14: =IF(COUNTRY_INFO!B14=0," ",COUNTRY_INFO!B14) -> ST | C14: =IF(COUNTRY_INFO!C14=0," ",COUNTRY_INFO!C14) -> Cauè | D14: =IF(OR(COUNTRY_INFO!$T$9:$T$1000="T3 (ALB/MBD)",COUNTRY_INFO!$U$9:$U$1000="T3 (ALB/MBD)"), "T3 (ALB/MBD)", " ") ->  | J14: 0 | N14: 0
A15: =IF(COUNTRY_INFO!A15=0," ",COUNTRY_INFO!A15) -> STP | B15: =IF(COUNTRY_INFO!B15=0," ",COUNTRY_INFO!B15) -> Principe | C15: =IF(COUNTRY_INFO!C15=0," ",COUNTRY_INFO!C15) -> Píncipe | D15: =IF(OR(COUNTRY_INFO!$T$9:$T$1000="T3 (ALB/MBD)",COUNTRY_INFO!$U$9:$U$1000="T3 (ALB/MBD)"), "T3 (ALB/MBD)", " ") ->  | J15: 0 | N15: 0

Sheet T3_R2
A1: T 3 - Albendazol (ALB) o Mebendazol (MBD) - Ronda 2
A2: Estructura administrativa, población requiriendo QP por grupo de edad, población tratada por grupo de edad y cobertura
A4: TOTAL | G4: =SUM(G$9:G$1000) -> 0 | H4: 0 | I4: 0 | J4: 0 | K4: 0 | L4: 0 | M4: 0 | N4: 0 | O4: =IF(G4<>0, IF(K4/G4*100=0, "-", K4/G4*100), " ") ->  | P4: =IF(H4<>0, IF(L4/H4*100=0, "-", L4/H4*100), " ") ->  | Q4: =IF(I4<>0, IF(M4/I4*100=0, "-", M4/I4*100), " ") ->  | R4: =IF(J4<>0, IF(N4/J4*100=0, "-", N4/J4*100), " ") -> 
A6: Estructura administrativa del país | D6: QP implementada | E6: Medica-mento | F6: Fecha | G6: Población objetivo para T3 | K6: Población tratada | O6: Cobertura del programa (%)
A7: País | B7: Provincia/Estado | C7: Distrito/municipio | G7: PreESC | H7: ESC | I7: Adultos | J7: Total | K7: PreESC | L7: ESC | M7: Adultos | N7: Total | O7: PreESC | P7: ESC | Q7: Adultos | R7: Total
A9: =IF(COUNTRY_INFO!A9=0," ",COUNTRY_INFO!A9) -> STP | B9: =IF(COUNTRY_INFO!B9=0," ",COUNTRY_INFO!B9) -> ST | C9: =IF(COUNTRY_INFO!C9=0," ",COUNTRY_INFO!C9) -> Agua Grande | D9: =IF(AND(COUNTRY_INFO!$T$9:$T$1000="T3 (ALB/MBD)",COUNTRY_INFO!$U$9:$U$1000="T3 (ALB/MBD)"), "T3 (ALB/MBD)", " ") ->  | J9: =SUM(G9:I9) -> 0 | N9: =SUM(K9:M9) -> 0 | O9: =IF(G9<>0, IF(K9/G9*100=0, "-", K9/G9*100), " ") -> 
A10: =IF(COUNTRY_INFO!A10=0," ",COUNTRY_INFO!A10) -> STP | B10: =IF(COUNTRY_INFO!B10=0," ",COUNTRY_INFO!B10) -> ST | C10: =IF(COUNTRY_INFO!C10=0," ",COUNTRY_INFO!C10) -> Me-zochi | D10: =IF(AND(COUNTRY_INFO!$T$9:$T$1000="T3 (ALB/MBD)",COUNTRY_INFO!$U$9:$U$1000="T3 (ALB/MBD)"), "T3 (ALB/MBD)", " ") ->  | J10: =SUM(G10:I10) -> 0 | N10: =SUM(K10:M10) -> 0 | O10: =IF(G10<>0, IF(K10/G10*100=0, "-", K10/G10*100), " ") ->  | P10: =IF(H10<>0, IF(L10/H10*100=0, "-", L10/H10*100), " ") ->  | Q10: =IF(I10<>0, IF(M10/I10*100=0, "-", M10/I10*100), " ") ->  | R10: =IF(J10<>0, IF(N10/J10*100=0, "-", N10/J10*100), " ") -> 
A11: =IF(COUNTRY_INFO!A11=0," ",COUNTRY_INFO!A11) -> STP | B11: =IF(COUNTRY_INFO!B11=0," ",COUNTRY_INFO!B11) -> ST | C11: =IF(COUNTRY_INFO!C11=0," ",COUNTRY_INFO!C11) -> Lobata | D11: =IF(AND(COUNTRY_INFO!$T$9:$T$1000="T3 (ALB/MBD)",COUNTRY_INFO!$U$9:$U$1000="T3 (ALB/MBD)"), "T3 (ALB/MBD)", " ") ->  | J11: 0 | N11: 0
A12: =IF(COUNTRY_INFO!A12=0," ",COUNTRY_INFO!A12) -> STP | B12: =IF(COUNTRY_INFO!B12=0," ",COUNTRY_INFO!B12) -> ST | C12: =IF(COUNTRY_INFO!C12=0," ",COUNTRY_INFO!C12) -> Cantagalo | D12: =IF(AND(COUNTRY_INFO!$T$9:$T$1000="T3 (ALB/MBD)",COUNTRY_INFO!$U$9:$U$1000="T3 (ALB/MBD)"), "T3 (ALB/MBD)", " ") ->  | J12: 0 | N12: 0
A13: =IF(COUNTRY_INFO!A13=0," ",COUNTRY_INFO!A13) -> STP | B13: =IF(COUNTRY_INFO!B13=0," ",COUNTRY_INFO!B13) -> ST | C13: =IF(COUNTRY_INFO!C13=0," ",COUNTRY_INFO!C13) -> Lemba | D13: =IF(AND(COUNTRY_INFO!$T$9:$T$1000="T3 (ALB/MBD)",COUNTRY_INFO!$U$9:$U$1000="T3 (ALB/MBD)"), "T3 (ALB/MBD)", " ") ->  | J13: 0 | N13: 0
A14: =IF(COUNTRY_INFO!A14=0," ",COUNTRY_INFO!A14) -> STP | B14: =IF(COUNTRY_INFO!B14=0," ",COUNTRY_INFO!B14) -> ST | C14: =IF(COUNTRY_INFO!C14=0," ",COUNTRY_INFO!C14) -> Cauè | D14: =IF(AND(COUNTRY_INFO!$T$9:$T$1000="T3 (ALB/MBD)",COUNTRY_INFO!$U$9:$U$1000="T3 (ALB/MBD)"), "T3 (ALB/MBD)", " ") ->  | J14: 0 | N14: 0
A15: =IF(COUNTRY_INFO!A15=0," ",COUNTRY_INFO!A15) -> STP | B15: =IF(COUNTRY_INFO!B15=0," ",COUNTRY_INFO!B15) -> Principe | C15: =IF(COUNTRY_INFO!C15=0," ",COUNTRY_INFO!C15) -> Píncipe | D15: =IF(AND(COUNTRY_INFO!$T$9:$T$1000="T3 (ALB/MBD)",COUNTRY_INFO!$U$9:$U$1000="T3 (ALB/MBD)"), "T3 (ALB/MBD)", " ") ->  | J15: 0 | N15: 0

Sheet DISTRICT
A1: Número de personas tratadas
A2: Estructura administrativa, población tratada por grupo de edad y sexo
A4: TOTAL | D4: =SUM(D$9:D$1000) -> 188134 | E4: =SUM(E$9:E$1000) -> 0 | F4: =SUM(F$9:F$1000) -> 0 | G4: =SUM(G$9:G$1000) -> 0 | H4: =SUM(H$9:H$1000) -> 0 | I4: =IF(D4>0, IF(H4/D4*100<>0, H4/D4*100, "-"),0) -> - | J4: =SUM(J$9:J$1000) -> 0 | K4: =SUM(K$9:K$1000) -> 0 | L4: =SUM(L$9:L$1000) -> 0 | M4: =SUM(M$9:M$1000) -> 0 | N4: =SUM(N$9:N$1000) -> 0 | O4: =IF(J4>0, IF(N4/J4*100<>0, N4/J4*100, "-"),0) -> 0 | P4: =SUM(P$9:P$1000) -> 72432 | Q4: =SUM(Q$9:Q$1000) -> 0 | R4: =SUM(R$9:R$1000) -> 0 | S4: =SUM(S$9:S$1000) -> 32201 | T4: =SUM(T$9:T$1000) -> 0 | V4: 32136 | X4: =SUM(X$9:X$1000) -> 32136 | Y4: =IF(P4>0, IF(X4/P4*100<>0, X4/P4*100, "-"),0) -> 44.36713055 | Z4: =SUM(Z$9:Z$1000) -> 35677.97 | AA4: 0 | AB4: 0 | AC4: 32201 | AD4: 21631.57 | AF4: 0 | AH4: 21631.57 | AI4: =IF(Z4>0, IF(AH4/Z4*100<>0, AH4/Z4*100, "-"),0) -> 60.63004706
A6: Estructura administrativa del país | D6: Población requiriendo QP para FL | E6: Población tratada para filariasis linfática | J6: Población requiriendo QP para Onco | K6: Población tratada para oncocercosis | P6: Población requiriendo QP para HTS | Q6: Población tratada para HTS | Z6: Población requiriendo QP para ESQ | AA6: Población tratada para esquistosomiasis | AP6: =SUM(AP9:AP1000) -> 6020 | AQ6: 23141 | AR6: 49291 | AS6: 109682 | AT6: =SUM(AT9:AT1000) -> 188134 | AU6: =COUNTIF(AU9:AU1000,"Y") -> 0 | AV6: =SUM(AV9:AV1000) -> 0 | AW6: 32201 | AX6: 0 | AY6: =SUM(AY9:AY1000) -> 32201 | AZ6: 0 | BA6: 32136 | BB6: 0 | BC6: 32136 | BD6: =IF(AT6<>0,BC6/AT6,0) -> 0.1708144195
A7: País | B7: Provincia/Estado | C7: Distrito/municipio | E7: Hombres | F7: Mujeres | G7: Total tratados | H7: Total tratados que necesitan QP | I7: (%) | K7: Hombres | L7: Mujeres | M7: Total tratados | N7: Total tratados que necesitan QP | O7: (%) | Q7: Hombres | R7: Mujeres | S7: Total tratados | T7: PreESC tratados que necesitan QP | U7: PreESC (%) | V7: ESC tratados que necesitan QP | W7: ESC (%) | X7: Total tratados que necesitan QP | Y7: (%) | AA7: Hombres | AB7: Mujeres | AC7: Total tratados | AD7: ESC tratados que necesitan QP | AE7: ESC (%) | AF7: Adultos tratados que necesitan QP | AG7: Adultos (%) | AH7: Total tratados que necesitan QP | AI7: (%) | AK7: LF | AL7: ONCHO | AM7: STH | AN7: SCH-SAC | AO7: SCH_Adults | AP7: <1 | AQ7: PreSAC | AR7: SAC | AS7: Adults | AT7: Total | AU7: Dis | AV7: PreSAC | AW7: SAC | AX7: Adults | AY7: Total | AZ7: PreSAC | BA7: SAC | BB7: Adults | BC7: Total | BD7: Coverage
A9: =IF(COUNTRY_INFO!A9=0," ",COUNTRY_INFO!A9) -> STP | B9: =IF(COUNTRY_INFO!B9=0," ",COUNTRY_INFO!B9) -> ST | C9: =IF(COUNTRY_INFO!C9=0," ",COUNTRY_INFO!C9) -> Agua Grande | D9: =COUNTRY_INFO!L9 -> 73648 | G9: =MAX('MDA1'!M9,'MDA2'!M9) -> 0 | H9: =IF(AND(COUNTRY_INFO!H9>0,COUNTRY_INFO!H9<4),IF(D9>MAX('MDA1'!M9,'MDA2'!M9),MAX('MDA1'!M9,'MDA2'!M9),D9),0) -> 0 | I9: =IF(AND(COUNTRY_INFO!H9>0,COUNTRY_INFO!H9<4), IF(G9/D9*100<>0, IF(G9/D9*100>100,100,G9/D9*100), "-"),0) -> - | J9: =COUNTRY_INFO!M9 -> No requerido | M9: =MAX('MDA1'!M9,MAX('MDA3'!I9,'MDA3'!L9)+MAX('MDA3'!J9,'MDA3'!M9)) -> 0 | N9: =IF(AND(COUNTRY_INFO!I9>0,COUNTRY_INFO!I9<4),IF(J9>MAX('MDA1'!M9,MAX('MDA3'!I9,'MDA3'!L9)+MAX('MDA3'!J9,'MDA3'!M9)),MAX('MDA1'!M9,MAX('MDA3'!I9,'MDA3'!L9)+MAX('MDA3'!J9,'MDA3'!M9)),J9),0) -> 0 | O9: =IF(AND(COUNTRY_INFO!I9>0,COUNTRY_INFO!I9<4), IF(M9/J9*100<>0, IF(M9/J9*100>100,100,M9/J9*100), "-"),0) -> 0 | P9: =COUNTRY_INFO!N9 -> 28355 | S9: =SUM(MAX('MDA2'!J9, 'T1'!L9, MAX(T3_R1!K9, T3_R2!K9)), MAX('MDA1'!K9, 'MDA2'!K9, 'T1'!M9, MAX(T3_R1!L9, T3_R2!L9)), MAX('MDA1'!L9, 'MDA2'!L9, 'T1'!N9, MAX(T3_R1!M9, T3_R2!M9))) -> 10719 | T9: =IF(AND(COUNTRY_INFO!J9>1,COUNTRY_INFO!J9<4),IF(COUNTRY_INFO!E9>MAX('MDA2'!J9,'T1'!L9,MAX(T3_R1!K9,T3_R2!K9)),MAX('MDA2'!J9,'T1'!L9,MAX(T3_R1!K9,T3_R2!K9)),COUNTRY_INFO!E9),0) -> 0 | U9: =IF(AND(COUNTRY_INFO!J9>1,COUNTRY_INFO!J9<4), IF(T9/COUNTRY_INFO!E9*100<>0, IF(T9/COUNTRY_INFO!E9*100>100,100,T9/COUNTRY_INFO!E9*100), "-"),0) -> - | V9: =IF(AND(COUNTRY_INFO!J9>1,COUNTRY_INFO!J9<4),IF(COUNTRY_INFO!F9>MAX('MDA1'!K9,'MDA2'!K9,'T1'!M9,MAX(T3_R1!L9,T3_R2!L9)),MAX('MDA1'!K9,'MDA2'!K9,'T1'!M9,MAX(T3_R1!L9,T3_R2!L9)),COUNTRY_INFO!F9),0) -> 10719 | W9: =IF(AND(COUNTRY_INFO!J9>1,COUNTRY_INFO!J9<4), IF(V9/COUNTRY_INFO!F9*100<>0, IF(V9/COUNTRY_INFO!F9*100>100,100,V9/COUNTRY_INFO!F9*100), "-"),0) -> 55.55037313 | X9: =SUM(T9,V9) -> 10719 | Y9: =IF(AND(COUNTRY_INFO!J9>1,COUNTRY_INFO!J9<4), IF(S9/P9*100<>0, IF(X9/P9*100>100,100,X9/P9*100), "-"),0) -> 37.80285664 | Z9: =COUNTRY_INFO!O9 -> 18235.4 | AC9: =MAX('T1'!L9,'T2'!J9)+MAX('T1'!M9,'T2'!K9)+MAX('T1'!N9,'T2'!L9) -> 10719 | AD9: =IF(COUNTRY_INFO!K9=1,IF(COUNTRY_INFO!F9*0.33>MAX('T1'!M9,'T2'!K9),MAX('T1'!M9,'T2'!K9),COUNTRY_INFO!F9*0.33),IF(COUNTRY_INFO!K9=2,IF(COUNTRY_INFO!F9*0.5>MAX('T1'!M9,'T2'!K9),MAX('T1'!M9,'T2'!K9),COUNTRY_INFO!F9*0.5),IF(COUNTRY_INFO!K9=3,IF(COUNTRY_INFO!F9>MAX('T1'!M9,'T2'!K9),MAX('T1'!M9,'T2'!K9),COUNTRY_INFO!F9),0))) -> 9648 | AE9: =IF(AND(COUNTRY_INFO!K9>0,COUNTRY_INFO!K9<4),IF(Z9>0,IF(COUNTRY_INFO!K9=1, AD9/(COUNTRY_INFO!F9*0.33)*100, IF(COUNTRY_INFO!K9=2, AD9/(COUNTRY_INFO!F9*0.5)*100, IF(COUNTRY_INFO!K9=3, AD9/COUNTRY_INFO!F9*100))),"-"),0) -> 100 | AF9: =IF(COUNTRY_INFO!K9=2,IF(COUNTRY_INFO!G9*0.2>MAX('T1'!N9,'T2'!L9),MAX('T1'!N9,'T2'!L9),COUNTRY_INFO!G9*0.2),IF(COUNTRY_INFO!K9=3,IF(COUNTRY_INFO!G9>MAX('T1'!N9,'T2'!L9),MAX('T1'!N9,'T2'!L9),COUNTRY_INFO!G9),0)) -> 0 | AG9: =IF(AND(COUNTRY_INFO!K9>0,COUNTRY_INFO!K9<4),IF(Z9>0,IF(COUNTRY_INFO!K9=1, 0, IF(COUNTRY_INFO!K9=2, AF9/(COUNTRY_INFO!G9*0.2)*100, IF(COUNTRY_INFO!K9=3, AF9/COUNTRY_INFO!G9*100))),"-"),0) -> 0 | AH9: =SUM(AD9,AF9) -> 9648 | AI9: =IF(AND(COUNTRY_INFO!K9>0,COUNTRY_INFO!K9<4), IF(AC9/Z9*100<>0, IF(AH9/Z9*100>100,100,AH9/Z9*100), "-"),0) -> 52.90807989 | AK9: =IF(AND(D9<>0, D9<>"Desconocido",D9<>"Suspendida",D9<>"No requerido"),D9/COUNTRY_INFO!D9, 0) -> 1 | AL9: =IF(AND(J9<>0,J9<>"Desconocido",J9<>"Suspendida",J9<>"No requerido"),J9/COUNTRY_INFO!D9, 0) -> 0 | AM9: =IF(AND(P9<>0,P9<>"Desconocido",P9<>"No requerido"),P9/(COUNTRY_INFO!E9+COUNTRY_INFO!F9), 0) -> 1 | AN9: =IF(AND(Z9<>0,Z9<>"Desconocido",Z9<>"No requerido"),IF(COUNTRY_INFO!K9=1,1,IF(COUNTRY_INFO!K9=2,0.5*COUNTRY_INFO!F9/(0.5*COUNTRY_INFO!F9+0.2*COUNTRY_INFO!G9),IF(COUNTRY_INFO!K9=3,COUNTRY_INFO!F9/(COUNTRY_INFO!F9+COUNTRY_INFO!G9)))),0) -> 0.5290807989 | AO9: =IF(AND(Z9<>0,Z9<>"Desconocido",Z9<>"No requerido"),IF(COUNTRY_INFO!K9=1,0,IF(COUNTRY_INFO!K9=2,0.2*COUNTRY_INFO!G9/(0.5*COUNTRY_INFO!F9+0.2*COUNTRY_INFO!G9),IF(COUNTRY_INFO!K9=3,COUNTRY_INFO!G9/(COUNTRY_INFO!F9+COUNTRY_INFO!G9)))),0) -> 0.4709192011 | AP9: =MAX(COUNTRY_INFO!D9*AK9*PROFILE!$G$7,COUNTRY_INFO!D9*AL9*PROFILE!$G$7) -> 2356.623258 | AQ9: =MAX(COUNTRY_INFO!D9*AK9*PROFILE!$G$8,COUNTRY_INFO!D9*AL9*PROFILE!$G$8,COUNTRY_INFO!D9*AM9*PROFILE!$G$8) -> 9058.906779 | AR9: =MAX(COUNTRY_INFO!D9*AK9*PROFILE!$G$9,COUNTRY_INFO!D9*AL9*PROFILE!$G$9,COUNTRY_INFO!D9*AM9*PROFILE!$G$9,IF(AND(DISTRICT!Z9<>"Desconocido",Z9<>"No requerido"),COUNTRY_INFO!O9*DISTRICT!AN9,0)) -> 19295.73372 | AS9: =MAX(COUNTRY_INFO!D9*AK9*PROFILE!$G$10,COUNTRY_INFO!D9*AL9*PROFILE!$G$10,IF(AND(DISTRICT!Z9<>"Desconocido",Z9<>"No requerido"),COUNTRY_INFO!O9*DISTRICT!AO9,0)) -> 42936.73624 | AT9: =SUM(AP9:AS9) -> 73648 | AU9: =IF(COUNTIFS(AK9:AN9,">0")=0,0, IF(COUNTIFS(AK9:AN9,">0")<=IF(AND(OR(D9>=0,D9="No requerido",D9="Desconocido",D9="Suspendida"),D9>0,H9>0),1,0)+IF(AND(OR(J9>=0,J9="No requerido",J9="Desconocido",J9="Suspendida"),J9>0,N9>0),1,0)+IF(AND(OR(P9>=0,P9="No requerido",P9="Desconocido"),P9>0,X9>0),1,0)+IF(AND(OR(Z9>=0,Z9="No requerido",Z9="Desconocido"),Z9>0,AH9>0),1,0),"Y",0)) -> 0 | AV9: =MAX('MDA2'!J9,'T1'!L9,'T2'!J9,T3_R1!K9,T3_R2!K9) -> 0 | AW9: =MAX('MDA1'!K9,'MDA2'!K9,'MDA3'!I9,'MDA3'!L9,'T1'!M9,'T2'!K9,T3_R1!L9,T3_R2!L9) -> 10719 | AX9: =MAX('MDA1'!L9,'MDA2'!L9,'MDA3'!J9,'MDA3'!M9,'T1'!N9,'T2'!L9,T3_R1!M9,T3_R2!M9) -> 0 | AY9: =SUM(AV9:AX9) -> 10719 | AZ9: =MAX('MDA2'!J9,T9) -> 0 | BA9: =MAX('MDA1'!K9,'MDA2'!K9,'MDA3'!I9,'MDA3'!L9,V9,AD9) -> 10719 | BB9: =MAX('MDA1'!L9,'MDA2'!L9,'MDA3'!J9,'MDA3'!M9,AF9) -> 0 | BC9: =IF(AT9<SUM(AZ9:BB9), AT9,SUM(AZ9:BB9)) -> 10719 | BD9: =IF(AT9<>0,BC9/AT9*100,0) -> 14.55436672
A10: =IF(COUNTRY_INFO!A10=0," ",COUNTRY_INFO!A10) -> STP | B10: =IF(COUNTRY_INFO!B10=0," ",COUNTRY_INFO!B10) -> ST | C10: =IF(COUNTRY_INFO!C10=0," ",COUNTRY_INFO!C10) -> Me-zochi | D10: =COUNTRY_INFO!L10 -> 46818 | G10: =MAX('MDA1'!M10,'MDA2'!M10) -> 0 | H10: =IF(AND(COUNTRY_INFO!H10>0,COUNTRY_INFO!H10<4),IF(D10>MAX('MDA1'!M10,'MDA2'!M10),MAX('MDA1'!M10,'MDA2'!M10),D10),0) -> 0 | I10: =IF(AND(COUNTRY_INFO!H10>0,COUNTRY_INFO!H10<4), IF(G10/D10*100<>0, IF(G10/D10*100>100,100,G10/D10*100), "-"),0) -> - | J10: =COUNTRY_INFO!M10 -> No requerido | M10: =MAX('MDA1'!M10,MAX('MDA3'!I10,'MDA3'!L10)+MAX('MDA3'!J10,'MDA3'!M10)) -> 0 | N10: =IF(AND(COUNTRY_INFO!I10>0,COUNTRY_INFO!I10<4),IF(J10>MAX('MDA1'!M10,MAX('MDA3'!I10,'MDA3'!L10)+MAX('MDA3'!J10,'MDA3'!M10)),MAX('MDA1'!M10,MAX('MDA3'!I10,'MDA3'!L10)+MAX('MDA3'!J10,'MDA3'!M10)),J10),0) -> 0 | O10: =IF(AND(COUNTRY_INFO!I10>0,COUNTRY_INFO!I10<4), IF(M10/J10*100<>0, IF(M10/J10*100>100,100,M10/J10*100), "-"),0) -> 0 | P10: =COUNTRY_INFO!N10 -> 18025 | S10: =SUM(MAX('MDA2'!J10, 'T1'!L10, MAX(T3_R1!K10, T3_R2!K10)), MAX('MDA1'!K10, 'MDA2'!K10, 'T1'!M10, MAX(T3_R1!L10, T3_R2!L10)), MAX('MDA1'!L10, 'MDA2'!L10, 'T1'!N10, MAX(T3_R1!M10, T3_R2!M10))) -> 8050 | T10: =IF(AND(COUNTRY_INFO!J10>1,COUNTRY_INFO!J10<4),IF(COUNTRY_INFO!E10>MAX('MDA2'!J10,'T1'!L10,MAX(T3_R1!K10,T3_R2!K10)),MAX('MDA2'!J10,'T1'!L10,MAX(T3_R1!K10,T3_R2!K10)),COUNTRY_INFO!E10),0) -> 0 | U10: =IF(AND(COUNTRY_INFO!J10>1,COUNTRY_INFO!J10<4), IF(T10/COUNTRY_INFO!E10*100<>0, IF(T10/COUNTRY_INFO!E10*100>100,100,T10/COUNTRY_INFO!E10*100), "-"),0) -> - | V10: =IF(AND(COUNTRY_INFO!J10>1,COUNTRY_INFO!J10<4),IF(COUNTRY_INFO!F10>MAX('MDA1'!K10,'MDA2'!K10,'T1'!M10,MAX(T3_R1!L10,T3_R2!L10)),MAX('MDA1'!K10,'MDA2'!K10,'T1'!M10,MAX(T3_R1!L10,T3_R2!L10)),COUNTRY_INFO!F10),0) -> 8050 | W10: =IF(AND(COUNTRY_INFO!J10>1,COUNTRY_INFO!J10<4), IF(V10/COUNTRY_INFO!F10*100<>0, IF(V10/COUNTRY_INFO!F10*100>100,100,V10/COUNTRY_INFO!F10*100), "-"),0) -> 65.62856677 | X10: =SUM(T10,V10) -> 8050 | Y10: =IF(AND(COUNTRY_INFO!J10>1,COUNTRY_INFO!J10<4), IF(S10/P10*100<>0, IF(X10/P10*100>100,100,X10/P10*100), "-"),0) -> 44.66019417 | Z10: =COUNTRY_INFO!O10 -> 11592 | AC10: =MAX('T1'!L10,'T2'!J10)+MAX('T1'!M10,'T2'!K10)+MAX('T1'!N10,'T2'!L10) -> 8050 | AD10: =IF(COUNTRY_INFO!K10=1,IF(COUNTRY_INFO!F10*0.33>MAX('T1'!M10,'T2'!K10),MAX('T1'!M10,'T2'!K10),COUNTRY_INFO!F10*0.33),IF(COUNTRY_INFO!K10=2,IF(COUNTRY_INFO!F10*0.5>MAX('T1'!M10,'T2'!K10),MAX('T1'!M10,'T2'!K10),COUNTRY_INFO!F10*0.5),IF(COUNTRY_INFO!K10=3,IF(COUNTRY_INFO!F10>MAX('T1'!M10,'T2'!K10),MAX('T1'!M10,'T2'!K10),COUNTRY_INFO!F10),0))) -> 6133 | AE10: =IF(AND(COUNTRY_INFO!K10>0,COUNTRY_INFO!K10<4),IF(Z10>0,IF(COUNTRY_INFO!K10=1, AD10/(COUNTRY_INFO!F10*0.33)*100, IF(COUNTRY_INFO!K10=2, AD10/(COUNTRY_INFO!F10*0.5)*100, IF(COUNTRY_INFO!K10=3, AD10/COUNTRY_INFO!F10*100))),"-"),0) -> 100 | AF10: =IF(COUNTRY_INFO!K10=2,IF(COUNTRY_INFO!G10*0.2>MAX('T1'!N10,'T2'!L10),MAX('T1'!N10,'T2'!L10),COUNTRY_INFO!G10*0.2),IF(COUNTRY_INFO!K10=3,IF(COUNTRY_INFO!G10>MAX('T1'!N10,'T2'!L10),MAX('T1'!N10,'T2'!L10),COUNTRY_INFO!G10),0)) -> 0 | AG10: =IF(AND(COUNTRY_INFO!K10>0,COUNTRY_INFO!K10<4),IF(Z10>0,IF(COUNTRY_INFO!K10=1, 0, IF(COUNTRY_INFO!K10=2, AF10/(COUNTRY_INFO!G10*0.2)*100, IF(COUNTRY_INFO!K10=3, AF10/COUNTRY_INFO!G10*100))),"-"),0) -> 0 | AH10: =SUM(AD10,AF10) -> 6133 | AI10: =IF(AND(COUNTRY_INFO!K10>0,COUNTRY_INFO!K10<4), IF(AC10/Z10*100<>0, IF(AH10/Z10*100>100,100,AH10/Z10*100), "-"),0) -> 52.90717736 | AK10: =IF(AND(D10<>0, D10<>"Desconocido",D10<>"Suspendida",D10<>"No requerido"),D10/COUNTRY_INFO!D10, 0) -> 1 | AL10: =IF(AND(J10<>0,J10<>"Desconocido",J10<>"Suspendida",J10<>"No requerido"),J10/COUNTRY_INFO!D10, 0) -> 0 | AM10: =IF(AND(P10<>0,P10<>"Desconocido",P10<>"No requerido"),P10/(COUNTRY_INFO!E10+COUNTRY_INFO!F10), 0) -> 1 | AN10: =IF(AND(Z10<>0,Z10<>"Desconocido",Z10<>"No requerido"),IF(COUNTRY_INFO!K10=1,1,IF(COUNTRY_INFO!K10=2,0.5*COUNTRY_INFO!F10/(0.5*COUNTRY_INFO!F10+0.2*COUNTRY_INFO!G10),IF(COUNTRY_INFO!K10=3,COUNTRY_INFO!F10/(COUNTRY_INFO!F10+COUNTRY_INFO!G10)))),0) -> 0.5290717736 | AO10: =IF(AND(Z10<>0,Z10<>"Desconocido",Z10<>"No requerido"),IF(COUNTRY_INFO!K10=1,0,IF(COUNTRY_INFO!K10=2,0.2*COUNTRY_INFO!G10/(0.5*COUNTRY_INFO!F10+0.2*COUNTRY_INFO!G10),IF(COUNTRY_INFO!K10=3,COUNTRY_INFO!G10/(COUNTRY_INFO!F10+COUNTRY_INFO!G10)))),0) -> 0.4709282264 | AP10: =MAX(COUNTRY_INFO!D10*AK10*PROFILE!$G$7,COUNTRY_INFO!D10*AL10*PROFILE!$G$7) -> 1498.10433 | AQ10: =MAX(COUNTRY_INFO!D10*AK10*PROFILE!$G$8,COUNTRY_INFO!D10*AL10*PROFILE!$G$8,COUNTRY_INFO!D10*AM10*PROFILE!$G$8) -> 5758.742907 | AR10: =MAX(COUNTRY_INFO!D10*AK10*PROFILE!$G$9,COUNTRY_INFO!D10*AL10*PROFILE!$G$9,COUNTRY_INFO!D10*AM10*PROFILE!$G$9,IF(AND(DISTRICT!Z10<>"Desconocido",Z10<>"No requerido"),COUNTRY_INFO!O10*DISTRICT!AN10,0)) -> 12266.28912 | AS10: =MAX(COUNTRY_INFO!D10*AK10*PROFILE!$G$10,COUNTRY_INFO!D10*AL10*PROFILE!$G$10,IF(AND(DISTRICT!Z10<>"Desconocido",Z10<>"No requerido"),COUNTRY_INFO!O10*DISTRICT!AO10,0)) -> 27294.86364 | AT10: =SUM(AP10:AS10) -> 46818 | AU10: 0 | AV10: =MAX('MDA2'!J10,'T1'!L10,'T2'!J10,T3_R1!K10,T3_R2!K10) -> 0 | AW10: =MAX('MDA1'!K10,'MDA2'!K10,'MDA3'!I10,'MDA3'!L10,'T1'!M10,'T2'!K10,T3_R1!L10,T3_R2!L10) -> 8050 | AX10: =MAX('MDA1'!L10,'MDA2'!L10,'MDA3'!J10,'MDA3'!M10,'T1'!N10,'T2'!L10,T3_R1!M10,T3_R2!M10) -> 0 | AY10: =SUM(AV10:AX10) -> 8050 | AZ10: =MAX('MDA2'!J10,T10) -> 0 | BA10: =MAX('MDA1'!K10,'MDA2'!K10,'MDA3'!I10,'MDA3'!L10,V10,AD10) -> 8050 | BB10: =MAX('MDA1'!L10,'MDA2'!L10,'MDA3'!J10,'MDA3'!M10,AF10) -> 0 | BC10: 8050 | BD10: 17.19424153
A11: =IF(COUNTRY_INFO!A11=0," ",COUNTRY_INFO!A11) -> STP | B11: =IF(COUNTRY_INFO!B11=0," ",COUNTRY_INFO!B11) -> ST | C11: =IF(COUNTRY_INFO!C11=0," ",COUNTRY_INFO!C11) -> Lobata | D11: =COUNTRY_INFO!L11 -> 20309 | G11: =MAX('MDA1'!M11,'MDA2'!M11) -> 0 | H11: =IF(AND(COUNTRY_INFO!H11>0,COUNTRY_INFO!H11<4),IF(D11>MAX('MDA1'!M11,'MDA2'!M11),MAX('MDA1'!M11,'MDA2'!M11),D11),0) -> 0 | I11: =IF(AND(COUNTRY_INFO!H11>0,COUNTRY_INFO!H11<4), IF(G11/D11*100<>0, IF(G11/D11*100>100,100,G11/D11*100), "-"),0) -> - | J11: =COUNTRY_INFO!M11 -> No requerido | M11: =MAX('MDA1'!M11,MAX('MDA3'!I11,'MDA3'!L11)+MAX('MDA3'!J11,'MDA3'!M11)) -> 0 | N11: =IF(AND(COUNTRY_INFO!I11>0,COUNTRY_INFO!I11<4),IF(J11>MAX('MDA1'!M11,MAX('MDA3'!I11,'MDA3'!L11)+MAX('MDA3'!J11,'MDA3'!M11)),MAX('MDA1'!M11,MAX('MDA3'!I11,'MDA3'!L11)+MAX('MDA3'!J11,'MDA3'!M11)),J11),0) -> 0 | O11: =IF(AND(COUNTRY_INFO!I11>0,COUNTRY_INFO!I11<4), IF(M11/J11*100<>0, IF(M11/J11*100>100,100,M11/J11*100), "-"),0) -> 0 | P11: =COUNTRY_INFO!N11 -> 7819 | S11: =SUM(MAX('MDA2'!J11, 'T1'!L11, MAX(T3_R1!K11, T3_R2!K11)), MAX('MDA1'!K11, 'MDA2'!K11, 'T1'!M11, MAX(T3_R1!L11, T3_R2!L11)), MAX('MDA1'!L11, 'MDA2'!L11, 'T1'!N11, MAX(T3_R1!M11, T3_R2!M11))) -> 3941 | T11: =IF(AND(COUNTRY_INFO!J11>1,COUNTRY_INFO!J11<4),IF(COUNTRY_INFO!E11>MAX('MDA2'!J11,'T1'!L11,MAX(T3_R1!K11,T3_R2!K11)),MAX('MDA2'!J11,'T1'!L11,MAX(T3_R1!K11,T3_R2!K11)),COUNTRY_INFO!E11),0) -> 0 | U11: =IF(AND(COUNTRY_INFO!J11>1,COUNTRY_INFO!J11<4), IF(T11/COUNTRY_INFO!E11*100<>0, IF(T11/COUNTRY_INFO!E11*100>100,100,T11/COUNTRY_INFO!E11*100), "-"),0) -> - | V11: =IF(AND(COUNTRY_INFO!J11>1,COUNTRY_INFO!J11<4),IF(COUNTRY_INFO!F11>MAX('MDA1'!K11,'MDA2'!K11,'T1'!M11,MAX(T3_R1!L11,T3_R2!L11)),MAX('MDA1'!K11,'MDA2'!K11,'T1'!M11,MAX(T3_R1!L11,T3_R2!L11)),COUNTRY_INFO!F11),0) -> 3941 | W11: =IF(AND(COUNTRY_INFO!J11>1,COUNTRY_INFO!J11<4), IF(V11/COUNTRY_INFO!F11*100<>0, IF(V11/COUNTRY_INFO!F11*100>100,100,V11/COUNTRY_INFO!F11*100), "-"),0) -> 74.06502537 | X11: 3941 | Y11: =IF(AND(COUNTRY_INFO!J11>1,COUNTRY_INFO!J11<4), IF(S11/P11*100<>0, IF(X11/P11*100>100,100,X11/P11*100), "-"),0) -> 50.40286482 | Z11: =COUNTRY_INFO!O11 -> 1755.93 | AC11: =MAX('T1'!L11,'T2'!J11)+MAX('T1'!M11,'T2'!K11)+MAX('T1'!N11,'T2'!L11) -> 3941 | AD11: =IF(COUNTRY_INFO!K11=1,IF(COUNTRY_INFO!F11*0.33>MAX('T1'!M11,'T2'!K11),MAX('T1'!M11,'T2'!K11),COUNTRY_INFO!F11*0.33),IF(COUNTRY_INFO!K11=2,IF(COUNTRY_INFO!F11*0.5>MAX('T1'!M11,'T2'!K11),MAX('T1'!M11,'T2'!K11),COUNTRY_INFO!F11*0.5),IF(COUNTRY_INFO!K11=3,IF(COUNTRY_INFO!F11>MAX('T1'!M11,'T2'!K11),MAX('T1'!M11,'T2'!K11),COUNTRY_INFO!F11),0))) -> 1755.93 | AE11: =IF(AND(COUNTRY_INFO!K11>0,COUNTRY_INFO!K11<4),IF(Z11>0,IF(COUNTRY_INFO!K11=1, AD11/(COUNTRY_INFO!F11*0.33)*100, IF(COUNTRY_INFO!K11=2, AD11/(COUNTRY_INFO!F11*0.5)*100, IF(COUNTRY_INFO!K11=3, AD11/COUNTRY_INFO!F11*100))),"-"),0) -> 100 | AF11: =IF(COUNTRY_INFO!K11=2,IF(COUNTRY_INFO!G11*0.2>MAX('T1'!N11,'T2'!L11),MAX('T1'!N11,'T2'!L11),COUNTRY_INFO!G11*0.2),IF(COUNTRY_INFO!K11=3,IF(COUNTRY_INFO!G11>MAX('T1'!N11,'T2'!L11),MAX('T1'!N11,'T2'!L11),COUNTRY_INFO!G11),0)) -> 0 | AG11: =IF(AND(COUNTRY_INFO!K11>0,COUNTRY_INFO!K11<4),IF(Z11>0,IF(COUNTRY_INFO!K11=1, 0, IF(COUNTRY_INFO!K11=2, AF11/(COUNTRY_INFO!G11*0.2)*100, IF(COUNTRY_INFO!K11=3, AF11/COUNTRY_INFO!G11*100))),"-"),0) -> 0 | AH11: 1755.93 | AI11: =IF(AND(COUNTRY_INFO!K11>0,COUNTRY_INFO!K11<4), IF(AC11/Z11*100<>0, IF(AH11/Z11*100>100,100,AH11/Z11*100), "-"),0) -> 100 | AK11: =IF(AND(D11<>0, D11<>"Desconocido",D11<>"Suspendida",D11<>"No requerido"),D11/COUNTRY_INFO!D11, 0) -> 1 | AL11: =IF(AND(J11<>0,J11<>"Desconocido",J11<>"Suspendida",J11<>"No requerido"),J11/COUNTRY_INFO!D11, 0) -> 0 | AM11: =IF(AND(P11<>0,P11<>"Desconocido",P11<>"No requerido"),P11/(COUNTRY_INFO!E11+COUNTRY_INFO!F11), 0) -> 1 | AN11: =IF(AND(Z11<>0,Z11<>"Desconocido",Z11<>"No requerido"),IF(COUNTRY_INFO!K11=1,1,IF(COUNTRY_INFO!K11=2,0.5*COUNTRY_INFO!F11/(0.5*COUNTRY_INFO!F11+0.2*COUNTRY_INFO!G11),IF(COUNTRY_INFO!K11=3,COUNTRY_INFO!F11/(COUNTRY_INFO!F11+COUNTRY_INFO!G11)))),0) -> 1 | AO11: =IF(AND(Z11<>0,Z11<>"Desconocido",Z11<>"No requerido"),IF(COUNTRY_INFO!K11=1,0,IF(COUNTRY_INFO!K11=2,0.2*COUNTRY_INFO!G11/(0.5*COUNTRY_INFO!F11+0.2*COUNTRY_INFO!G11),IF(COUNTRY_INFO!K11=3,COUNTRY_INFO!G11/(COUNTRY_INFO!F11+COUNTRY_INFO!G11)))),0) -> 0 | AP11: =MAX(COUNTRY_INFO!D11*AK11*PROFILE!$G$7,COUNTRY_INFO!D11*AL11*PROFILE!$G$7) -> 649.8569105 | AQ11: =MAX(COUNTRY_INFO!D11*AK11*PROFILE!$G$8,COUNTRY_INFO!D11*AL11*PROFILE!$G$8,COUNTRY_INFO!D11*AM11*PROFILE!$G$8) -> 2498.062918 | AR11: =MAX(COUNTRY_INFO!D11*AK11*PROFILE!$G$9,COUNTRY_INFO!D11*AL11*PROFILE!$G$9,COUNTRY_INFO!D11*AM11*PROFILE!$G$9,IF(AND(DISTRICT!Z11<>"Desconocido",Z11<>"No requerido"),COUNTRY_INFO!O11*DISTRICT!AN11,0)) -> 5320.946341 | AS11: =MAX(COUNTRY_INFO!D11*AK11*PROFILE!$G$10,COUNTRY_INFO!D11*AL11*PROFILE!$G$10,IF(AND(DISTRICT!Z11<>"Desconocido",Z11<>"No requerido"),COUNTRY_INFO!O11*DISTRICT!AO11,0)) -> 11840.13383 | AT11: 20309 | AU11: 0 | AV11: =MAX('MDA2'!J11,'T1'!L11,'T2'!J11,T3_R1!K11,T3_R2!K11) -> 0 | AW11: =MAX('MDA1'!K11,'MDA2'!K11,'MDA3'!I11,'MDA3'!L11,'T1'!M11,'T2'!K11,T3_R1!L11,T3_R2!L11) -> 3941 | AX11: =MAX('MDA1'!L11,'MDA2'!L11,'MDA3'!J11,'MDA3'!M11,'T1'!N11,'T2'!L11,T3_R1!M11,T3_R2!M11) -> 0 | AY11: 3941 | AZ11: =MAX('MDA2'!J11,T11) -> 0 | BA11: =MAX('MDA1'!K11,'MDA2'!K11,'MDA3'!I11,'MDA3'!L11,V11,AD11) -> 3941 | BB11: =MAX('MDA1'!L11,'MDA2'!L11,'MDA3'!J11,'MDA3'!M11,AF11) -> 0 | BC11: 3941 | BD11: 19.40518982
A12: =IF(COUNTRY_INFO!A12=0," ",COUNTRY_INFO!A12) -> STP | B12: =IF(COUNTRY_INFO!B12=0," ",COUNTRY_INFO!B12) -> ST | C12: =IF(COUNTRY_INFO!C12=0," ",COUNTRY_INFO!C12) -> Cantagalo | D12: =COUNTRY_INFO!L12 -> 18010 | G12: =MAX('MDA1'!M12,'MDA2'!M12) -> 0 | H12: =IF(AND(COUNTRY_INFO!H12>0,COUNTRY_INFO!H12<4),IF(D12>MAX('MDA1'!M12,'MDA2'!M12),MAX('MDA1'!M12,'MDA2'!M12),D12),0) -> 0 | I12: =IF(AND(COUNTRY_INFO!H12>0,COUNTRY_INFO!H12<4), IF(G12/D12*100<>0, IF(G12/D12*100>100,100,G12/D12*100), "-"),0) -> - | J12: =COUNTRY_INFO!M12 -> No requerido | M12: =MAX('MDA1'!M12,MAX('MDA3'!I12,'MDA3'!L12)+MAX('MDA3'!J12,'MDA3'!M12)) -> 0 | N12: =IF(AND(COUNTRY_INFO!I12>0,COUNTRY_INFO!I12<4),IF(J12>MAX('MDA1'!M12,MAX('MDA3'!I12,'MDA3'!L12)+MAX('MDA3'!J12,'MDA3'!M12)),MAX('MDA1'!M12,MAX('MDA3'!I12,'MDA3'!L12)+MAX('MDA3'!J12,'MDA3'!M12)),J12),0) -> 0 | O12: =IF(AND(COUNTRY_INFO!I12>0,COUNTRY_INFO!I12<4), IF(M12/J12*100<>0, IF(M12/J12*100>100,100,M12/J12*100), "-"),0) -> 0 | P12: =COUNTRY_INFO!N12 -> 6934 | S12: =SUM(MAX('MDA2'!J12, 'T1'!L12, MAX(T3_R1!K12, T3_R2!K12)), MAX('MDA1'!K12, 'MDA2'!K12, 'T1'!M12, MAX(T3_R1!L12, T3_R2!L12)), MAX('MDA1'!L12, 'MDA2'!L12, 'T1'!N12, MAX(T3_R1!M12, T3_R2!M12))) -> 3244 | T12: =IF(AND(COUNTRY_INFO!J12>1,COUNTRY_INFO!J12<4),IF(COUNTRY_INFO!E12>MAX('MDA2'!J12,'T1'!L12,MAX(T3_R1!K12,T3_R2!K12)),MAX('MDA2'!J12,'T1'!L12,MAX(T3_R1!K12,T3_R2!K12)),COUNTRY_INFO!E12),0) -> 0 | U12: =IF(AND(COUNTRY_INFO!J12>1,COUNTRY_INFO!J12<4), IF(T12/COUNTRY_INFO!E12*100<>0, IF(T12/COUNTRY_INFO!E12*100>100,100,T12/COUNTRY_INFO!E12*100), "-"),0) -> - | V12: =IF(AND(COUNTRY_INFO!J12>1,COUNTRY_INFO!J12<4),IF(COUNTRY_INFO!F12>MAX('MDA1'!K12,'MDA2'!K12,'T1'!M12,MAX(T3_R1!L12,T3_R2!L12)),MAX('MDA1'!K12,'MDA2'!K12,'T1'!M12,MAX(T3_R1!L12,T3_R2!L12)),COUNTRY_INFO!F12),0) -> 3244 | W12: =IF(AND(COUNTRY_INFO!J12>1,COUNTRY_INFO!J12<4), IF(V12/COUNTRY_INFO!F12*100<>0, IF(V12/COUNTRY_INFO!F12*100>100,100,V12/COUNTRY_INFO!F12*100), "-"),0) -> 68.74337783 | X12: 3244 | Y12: =IF(AND(COUNTRY_INFO!J12>1,COUNTRY_INFO!J12<4), IF(S12/P12*100<>0, IF(X12/P12*100>100,100,X12/P12*100), "-"),0) -> 46.78396308 | Z12: =COUNTRY_INFO!O12 -> 1557.27 | AC12: =MAX('T1'!L12,'T2'!J12)+MAX('T1'!M12,'T2'!K12)+MAX('T1'!N12,'T2'!L12) -> 3244 | AD12: =IF(COUNTRY_INFO!K12=1,IF(COUNTRY_INFO!F12*0.33>MAX('T1'!M12,'T2'!K12),MAX('T1'!M12,'T2'!K12),COUNTRY_INFO!F12*0.33),IF(COUNTRY_INFO!K12=2,IF(COUNTRY_INFO!F12*0.5>MAX('T1'!M12,'T2'!K12),MAX('T1'!M12,'T2'!K12),COUNTRY_INFO!F12*0.5),IF(COUNTRY_INFO!K12=3,IF(COUNTRY_INFO!F12>MAX('T1'!M12,'T2'!K12),MAX('T1'!M12,'T2'!K12),COUNTRY_INFO!F12),0))) -> 1557.27 | AE12: =IF(AND(COUNTRY_INFO!K12>0,COUNTRY_INFO!K12<4),IF(Z12>0,IF(COUNTRY_INFO!K12=1, AD12/(COUNTRY_INFO!F12*0.33)*100, IF(COUNTRY_INFO!K12=2, AD12/(COUNTRY_INFO!F12*0.5)*100, IF(COUNTRY_INFO!K12=3, AD12/COUNTRY_INFO!F12*100))),"-"),0) -> 100 | AF12: =IF(COUNTRY_INFO!K12=2,IF(COUNTRY_INFO!G12*0.2>MAX('T1'!N12,'T2'!L12),MAX('T1'!N12,'T2'!L12),COUNTRY_INFO!G12*0.2),IF(COUNTRY_INFO!K12=3,IF(COUNTRY_INFO!G12>MAX('T1'!N12,'T2'!L12),MAX('T1'!N12,'T2'!L12),COUNTRY_INFO!G12),0)) -> 0 | AG12: =IF(AND(COUNTRY_INFO!K12>0,COUNTRY_INFO!K12<4),IF(Z12>0,IF(COUNTRY_INFO!K12=1, 0, IF(COUNTRY_INFO!K12=2, AF12/(COUNTRY_INFO!G12*0.2)*100, IF(COUNTRY_INFO!K12=3, AF12/COUNTRY_INFO!G12*100))),"-"),0) -> 0 | AH12: 1557.27 | AI12: =IF(AND(COUNTRY_INFO!K12>0,COUNTRY_INFO!K12<4), IF(AC12/Z12*100<>0, IF(AH12/Z12*100>100,100,AH12/Z12*100), "-"),0) -> 100 | AK12: =IF(AND(D12<>0, D12<>"Desconocido",D12<>"Suspendida",D12<>"No requerido"),D12/COUNTRY_INFO!D12, 0) -> 1 | AL12: =IF(AND(J12<>0,J12<>"Desconocido",J12<>"Suspendida",J12<>"No requerido"),J12/COUNTRY_INFO!D12, 0) -> 0 | AM12: =IF(AND(P12<>0,P12<>"Desconocido",P12<>"No requerido"),P12/(COUNTRY_INFO!E12+COUNTRY_INFO!F12), 0) -> 1 | AN12: =IF(AND(Z12<>0,Z12<>"Desconocido",Z12<>"No requerido"),IF(COUNTRY_INFO!K12=1,1,IF(COUNTRY_INFO!K12=2,0.5*COUNTRY_INFO!F12/(0.5*COUNTRY_INFO!F12+0.2*COUNTRY_INFO!G12),IF(COUNTRY_INFO!K12=3,COUNTRY_INFO!F12/(COUNTRY_INFO!F12+COUNTRY_INFO!G12)))),0) -> 1 | AO12: =IF(AND(Z12<>0,Z12<>"Desconocido",Z12<>"No requerido"),IF(COUNTRY_INFO!K12=1,0,IF(COUNTRY_INFO!K12=2,0.2*COUNTRY_INFO!G12/(0.5*COUNTRY_INFO!F12+0.2*COUNTRY_INFO!G12),IF(COUNTRY_INFO!K12=3,COUNTRY_INFO!G12/(COUNTRY_INFO!F12+COUNTRY_INFO!G12)))),0) -> 0 | AP12: =MAX(COUNTRY_INFO!D12*AK12*PROFILE!$G$7,COUNTRY_INFO!D12*AL12*PROFILE!$G$7) -> 576.2924299 | AQ12: =MAX(COUNTRY_INFO!D12*AK12*PROFILE!$G$8,COUNTRY_INFO!D12*AL12*PROFILE!$G$8,COUNTRY_INFO!D12*AM12*PROFILE!$G$8) -> 2215.279588 | AR12: =MAX(COUNTRY_INFO!D12*AK12*PROFILE!$G$9,COUNTRY_INFO!D12*AL12*PROFILE!$G$9,COUNTRY_INFO!D12*AM12*PROFILE!$G$9,IF(AND(DISTRICT!Z12<>"Desconocido",Z12<>"No requerido"),COUNTRY_INFO!O12*DISTRICT!AN12,0)) -> 4718.609661 | AS12: =MAX(COUNTRY_INFO!D12*AK12*PROFILE!$G$10,COUNTRY_INFO!D12*AL12*PROFILE!$G$10,IF(AND(DISTRICT!Z12<>"Desconocido",Z12<>"No requerido"),COUNTRY_INFO!O12*DISTRICT!AO12,0)) -> 10499.81832 | AT12: 18010 | AU12: 0 | AV12: =MAX('MDA2'!J12,'T1'!L12,'T2'!J12,T3_R1!K12,T3_R2!K12) -> 0 | AW12: =MAX('MDA1'!K12,'MDA2'!K12,'MDA3'!I12,'MDA3'!L12,'T1'!M12,'T2'!K12,T3_R1!L12,T3_R2!L12) -> 3244 | AX12: =MAX('MDA1'!L12,'MDA2'!L12,'MDA3'!J12,'MDA3'!M12,'T1'!N12,'T2'!L12,T3_R1!M12,T3_R2!M12) -> 0 | AY12: 3244 | AZ12: =MAX('MDA2'!J12,T12) -> 0 | BA12: =MAX('MDA1'!K12,'MDA2'!K12,'MDA3'!I12,'MDA3'!L12,V12,AD12) -> 3244 | BB12: =MAX('MDA1'!L12,'MDA2'!L12,'MDA3'!J12,'MDA3'!M12,AF12) -> 0 | BC12: 3244 | BD12: 18.01221544
A13: =IF(COUNTRY_INFO!A13=0," ",COUNTRY_INFO!A13) -> STP | B13: =IF(COUNTRY_INFO!B13=0," ",COUNTRY_INFO!B13) -> ST | C13: =IF(COUNTRY_INFO!C13=0," ",COUNTRY_INFO!C13) -> Lemba | D13: =COUNTRY_INFO!L13 -> 15558 | G13: =MAX('MDA1'!M13,'MDA2'!M13) -> 0 | H13: =IF(AND(COUNTRY_INFO!H13>0,COUNTRY_INFO!H13<4),IF(D13>MAX('MDA1'!M13,'MDA2'!M13),MAX('MDA1'!M13,'MDA2'!M13),D13),0) -> 0 | I13: =IF(AND(COUNTRY_INFO!H13>0,COUNTRY_INFO!H13<4), IF(G13/D13*100<>0, IF(G13/D13*100>100,100,G13/D13*100), "-"),0) -> - | J13: =COUNTRY_INFO!M13 -> No requerido | M13: =MAX('MDA1'!M13,MAX('MDA3'!I13,'MDA3'!L13)+MAX('MDA3'!J13,'MDA3'!M13)) -> 0 | N13: =IF(AND(COUNTRY_INFO!I13>0,COUNTRY_INFO!I13<4),IF(J13>MAX('MDA1'!M13,MAX('MDA3'!I13,'MDA3'!L13)+MAX('MDA3'!J13,'MDA3'!M13)),MAX('MDA1'!M13,MAX('MDA3'!I13,'MDA3'!L13)+MAX('MDA3'!J13,'MDA3'!M13)),J13),0) -> 0 | O13: =IF(AND(COUNTRY_INFO!I13>0,COUNTRY_INFO!I13<4), IF(M13/J13*100<>0, IF(M13/J13*100>100,100,M13/J13*100), "-"),0) -> 0 | P13: =COUNTRY_INFO!N13 -> 5990 | S13: =SUM(MAX('MDA2'!J13, 'T1'!L13, MAX(T3_R1!K13, T3_R2!K13)), MAX('MDA1'!K13, 'MDA2'!K13, 'T1'!M13, MAX(T3_R1!L13, T3_R2!L13)), MAX('MDA1'!L13, 'MDA2'!L13, 'T1'!N13, MAX(T3_R1!M13, T3_R2!M13))) -> 2927 | T13: =IF(AND(COUNTRY_INFO!J13>1,COUNTRY_INFO!J13<4),IF(COUNTRY_INFO!E13>MAX('MDA2'!J13,'T1'!L13,MAX(T3_R1!K13,T3_R2!K13)),MAX('MDA2'!J13,'T1'!L13,MAX(T3_R1!K13,T3_R2!K13)),COUNTRY_INFO!E13),0) -> 0 | U13: =IF(AND(COUNTRY_INFO!J13>1,COUNTRY_INFO!J13<4), IF(T13/COUNTRY_INFO!E13*100<>0, IF(T13/COUNTRY_INFO!E13*100>100,100,T13/COUNTRY_INFO!E13*100), "-"),0) -> - | V13: =IF(AND(COUNTRY_INFO!J13>1,COUNTRY_INFO!J13<4),IF(COUNTRY_INFO!F13>MAX('MDA1'!K13,'MDA2'!K13,'T1'!M13,MAX(T3_R1!L13,T3_R2!L13)),MAX('MDA1'!K13,'MDA2'!K13,'T1'!M13,MAX(T3_R1!L13,T3_R2!L13)),COUNTRY_INFO!F13),0) -> 2927 | W13: =IF(AND(COUNTRY_INFO!J13>1,COUNTRY_INFO!J13<4), IF(V13/COUNTRY_INFO!F13*100<>0, IF(V13/COUNTRY_INFO!F13*100>100,100,V13/COUNTRY_INFO!F13*100), "-"),0) -> 71.81059863 | X13: 2927 | Y13: =IF(AND(COUNTRY_INFO!J13>1,COUNTRY_INFO!J13<4), IF(S13/P13*100<>0, IF(X13/P13*100>100,100,X13/P13*100), "-"),0) -> 48.86477462 | Z13: =COUNTRY_INFO!O13 -> 1345.08 | AC13: =MAX('T1'!L13,'T2'!J13)+MAX('T1'!M13,'T2'!K13)+MAX('T1'!N13,'T2'!L13) -> 2927 | AD13: =IF(COUNTRY_INFO!K13=1,IF(COUNTRY_INFO!F13*0.33>MAX('T1'!M13,'T2'!K13),MAX('T1'!M13,'T2'!K13),COUNTRY_INFO!F13*0.33),IF(COUNTRY_INFO!K13=2,IF(COUNTRY_INFO!F13*0.5>MAX('T1'!M13,'T2'!K13),MAX('T1'!M13,'T2'!K13),COUNTRY_INFO!F13*0.5),IF(COUNTRY_INFO!K13=3,IF(COUNTRY_INFO!F13>MAX('T1'!M13,'T2'!K13),MAX('T1'!M13,'T2'!K13),COUNTRY_INFO!F13),0))) -> 1345.08 | AE13: =IF(AND(COUNTRY_INFO!K13>0,COUNTRY_INFO!K13<4),IF(Z13>0,IF(COUNTRY_INFO!K13=1, AD13/(COUNTRY_INFO!F13*0.33)*100, IF(COUNTRY_INFO!K13=2, AD13/(COUNTRY_INFO!F13*0.5)*100, IF(COUNTRY_INFO!K13=3, AD13/COUNTRY_INFO!F13*100))),"-"),0) -> 100 | AF13: =IF(COUNTRY_INFO!K13=2,IF(COUNTRY_INFO!G13*0.2>MAX('T1'!N13,'T2'!L13),MAX('T1'!N13,'T2'!L13),COUNTRY_INFO!G13*0.2),IF(COUNTRY_INFO!K13=3,IF(COUNTRY_INFO!G13>MAX('T1'!N13,'T2'!L13),MAX('T1'!N13,'T2'!L13),COUNTRY_INFO!G13),0)) -> 0 | AG13: =IF(AND(COUNTRY_INFO!K13>0,COUNTRY_INFO!K13<4),IF(Z13>0,IF(COUNTRY_INFO!K13=1, 0, IF(COUNTRY_INFO!K13=2, AF13/(COUNTRY_INFO!G13*0.2)*100, IF(COUNTRY_INFO!K13=3, AF13/COUNTRY_INFO!G13*100))),"-"),0) -> 0 | AH13: 1345.08 | AI13: =IF(AND(COUNTRY_INFO!K13>0,COUNTRY_INFO!K13<4), IF(AC13/Z13*100<>0, IF(AH13/Z13*100>100,100,AH13/Z13*100), "-"),0) -> 100 | AK13: =IF(AND(D13<>0, D13<>"Desconocido",D13<>"Suspendida",D13<>"No requerido"),D13/COUNTRY_INFO!D13, 0) -> 1 | AL13: =IF(AND(J13<>0,J13<>"Desconocido",J13<>"Suspendida",J13<>"No requerido"),J13/COUNTRY_INFO!D13, 0) -> 0 | AM13: =IF(AND(P13<>0,P13<>"Desconocido",P13<>"No requerido"),P13/(COUNTRY_INFO!E13+COUNTRY_INFO!F13), 0) -> 1 | AN13: =IF(AND(Z13<>0,Z13<>"Desconocido",Z13<>"No requerido"),IF(COUNTRY_INFO!K13=1,1,IF(COUNTRY_INFO!K13=2,0.5*COUNTRY_INFO!F13/(0.5*COUNTRY_INFO!F13+0.2*COUNTRY_INFO!G13),IF(COUNTRY_INFO!K13=3,COUNTRY_INFO!F13/(COUNTRY_INFO!F13+COUNTRY_INFO!G13)))),0) -> 1 | AO13: =IF(AND(Z13<>0,Z13<>"Desconocido",Z13<>"No requerido"),IF(COUNTRY_INFO!K13=1,0,IF(COUNTRY_INFO!K13=2,0.2*COUNTRY_INFO!G13/(0.5*COUNTRY_INFO!F13+0.2*COUNTRY_INFO!G13),IF(COUNTRY_INFO!K13=3,COUNTRY_INFO!G13/(COUNTRY_INFO!F13+COUNTRY_INFO!G13)))),0) -> 0 | AP13: =MAX(COUNTRY_INFO!D13*AK13*PROFILE!$G$7,COUNTRY_INFO!D13*AL13*PROFILE!$G$7) -> 497.8321834 | AQ13: =MAX(COUNTRY_INFO!D13*AK13*PROFILE!$G$8,COUNTRY_INFO!D13*AL13*PROFILE!$G$8,COUNTRY_INFO!D13*AM13*PROFILE!$G$8) -> 1913.676837 | AR13: =MAX(COUNTRY_INFO!D13*AK13*PROFILE!$G$9,COUNTRY_INFO!D13*AL13*PROFILE!$G$9,COUNTRY_INFO!D13*AM13*PROFILE!$G$9,IF(AND(DISTRICT!Z13<>"Desconocido",Z13<>"No requerido"),COUNTRY_INFO!O13*DISTRICT!AN13,0)) -> 4076.187069 | AS13: =MAX(COUNTRY_INFO!D13*AK13*PROFILE!$G$10,COUNTRY_INFO!D13*AL13*PROFILE!$G$10,IF(AND(DISTRICT!Z13<>"Desconocido",Z13<>"No requerido"),COUNTRY_INFO!O13*DISTRICT!AO13,0)) -> 9070.303911 | AT13: 15558 | AU13: 0 | AV13: =MAX('MDA2'!J13,'T1'!L13,'T2'!J13,T3_R1!K13,T3_R2!K13) -> 0 | AW13: =MAX('MDA1'!K13,'MDA2'!K13,'MDA3'!I13,'MDA3'!L13,'T1'!M13,'T2'!K13,T3_R1!L13,T3_R2!L13) -> 2927 | AX13: =MAX('MDA1'!L13,'MDA2'!L13,'MDA3'!J13,'MDA3'!M13,'T1'!N13,'T2'!L13,T3_R1!M13,T3_R2!M13) -> 0 | AY13: 2927 | AZ13: =MAX('MDA2'!J13,T13) -> 0 | BA13: =MAX('MDA1'!K13,'MDA2'!K13,'MDA3'!I13,'MDA3'!L13,V13,AD13) -> 2927 | BB13: =MAX('MDA1'!L13,'MDA2'!L13,'MDA3'!J13,'MDA3'!M13,AF13) -> 0 | BC13: 2927 | BD13: 18.81347217
A14: =IF(COUNTRY_INFO!A14=0," ",COUNTRY_INFO!A14) -> STP | B14: =IF(COUNTRY_INFO!B14=0," ",COUNTRY_INFO!B14) -> ST | C14: =IF(COUNTRY_INFO!C14=0," ",COUNTRY_INFO!C14) -> Cauè | D14: =COUNTRY_INFO!L14 -> 6162 | G14: =MAX('MDA1'!M14,'MDA2'!M14) -> 0 | H14: =IF(AND(COUNTRY_INFO!H14>0,COUNTRY_INFO!H14<4),IF(D14>MAX('MDA1'!M14,'MDA2'!M14),MAX('MDA1'!M14,'MDA2'!M14),D14),0) -> 0 | I14: =IF(AND(COUNTRY_INFO!H14>0,COUNTRY_INFO!H14<4), IF(G14/D14*100<>0, IF(G14/D14*100>100,100,G14/D14*100), "-"),0) -> - | J14: =COUNTRY_INFO!M14 -> No requerido | M14: =MAX('MDA1'!M14,MAX('MDA3'!I14,'MDA3'!L14)+MAX('MDA3'!J14,'MDA3'!M14)) -> 0 | N14: =IF(AND(COUNTRY_INFO!I14>0,COUNTRY_INFO!I14<4),IF(J14>MAX('MDA1'!M14,MAX('MDA3'!I14,'MDA3'!L14)+MAX('MDA3'!J14,'MDA3'!M14)),MAX('MDA1'!M14,MAX('MDA3'!I14,'MDA3'!L14)+MAX('MDA3'!J14,'MDA3'!M14)),J14),0) -> 0 | O14: =IF(AND(COUNTRY_INFO!I14>0,COUNTRY_INFO!I14<4), IF(M14/J14*100<>0, IF(M14/J14*100>100,100,M14/J14*100), "-"),0) -> 0 | P14: =COUNTRY_INFO!N14 -> 2372 | S14: =SUM(MAX('MDA2'!J14, 'T1'!L14, MAX(T3_R1!K14, T3_R2!K14)), MAX('MDA1'!K14, 'MDA2'!K14, 'T1'!M14, MAX(T3_R1!L14, T3_R2!L14)), MAX('MDA1'!L14, 'MDA2'!L14, 'T1'!N14, MAX(T3_R1!M14, T3_R2!M14))) -> 1256 | T14: =IF(AND(COUNTRY_INFO!J14>1,COUNTRY_INFO!J14<4),IF(COUNTRY_INFO!E14>MAX('MDA2'!J14,'T1'!L14,MAX(T3_R1!K14,T3_R2!K14)),MAX('MDA2'!J14,'T1'!L14,MAX(T3_R1!K14,T3_R2!K14)),COUNTRY_INFO!E14),0) -> 0 | U14: =IF(AND(COUNTRY_INFO!J14>1,COUNTRY_INFO!J14<4), IF(T14/COUNTRY_INFO!E14*100<>0, IF(T14/COUNTRY_INFO!E14*100>100,100,T14/COUNTRY_INFO!E14*100), "-"),0) -> - | V14: =IF(AND(COUNTRY_INFO!J14>1,COUNTRY_INFO!J14<4),IF(COUNTRY_INFO!F14>MAX('MDA1'!K14,'MDA2'!K14,'T1'!M14,MAX(T3_R1!L14,T3_R2!L14)),MAX('MDA1'!K14,'MDA2'!K14,'T1'!M14,MAX(T3_R1!L14,T3_R2!L14)),COUNTRY_INFO!F14),0) -> 1256 | W14: =IF(AND(COUNTRY_INFO!J14>1,COUNTRY_INFO!J14<4), IF(V14/COUNTRY_INFO!F14*100<>0, IF(V14/COUNTRY_INFO!F14*100>100,100,V14/COUNTRY_INFO!F14*100), "-"),0) -> 77.81908302 | X14: 1256 | Y14: =IF(AND(COUNTRY_INFO!J14>1,COUNTRY_INFO!J14<4), IF(S14/P14*100<>0, IF(X14/P14*100>100,100,X14/P14*100), "-"),0) -> 52.95109612 | Z14: =COUNTRY_INFO!O14 -> 532.62 | AC14: =MAX('T1'!L14,'T2'!J14)+MAX('T1'!M14,'T2'!K14)+MAX('T1'!N14,'T2'!L14) -> 1256 | AD14: =IF(COUNTRY_INFO!K14=1,IF(COUNTRY_INFO!F14*0.33>MAX('T1'!M14,'T2'!K14),MAX('T1'!M14,'T2'!K14),COUNTRY_INFO!F14*0.33),IF(COUNTRY_INFO!K14=2,IF(COUNTRY_INFO!F14*0.5>MAX('T1'!M14,'T2'!K14),MAX('T1'!M14,'T2'!K14),COUNTRY_INFO!F14*0.5),IF(COUNTRY_INFO!K14=3,IF(COUNTRY_INFO!F14>MAX('T1'!M14,'T2'!K14),MAX('T1'!M14,'T2'!K14),COUNTRY_INFO!F14),0))) -> 532.62 | AE14: =IF(AND(COUNTRY_INFO!K14>0,COUNTRY_INFO!K14<4),IF(Z14>0,IF(COUNTRY_INFO!K14=1, AD14/(COUNTRY_INFO!F14*0.33)*100, IF(COUNTRY_INFO!K14=2, AD14/(COUNTRY_INFO!F14*0.5)*100, IF(COUNTRY_INFO!K14=3, AD14/COUNTRY_INFO!F14*100))),"-"),0) -> 100 | AF14: =IF(COUNTRY_INFO!K14=2,IF(COUNTRY_INFO!G14*0.2>MAX('T1'!N14,'T2'!L14),MAX('T1'!N14,'T2'!L14),COUNTRY_INFO!G14*0.2),IF(COUNTRY_INFO!K14=3,IF(COUNTRY_INFO!G14>MAX('T1'!N14,'T2'!L14),MAX('T1'!N14,'T2'!L14),COUNTRY_INFO!G14),0)) -> 0 | AG14: =IF(AND(COUNTRY_INFO!K14>0,COUNTRY_INFO!K14<4),IF(Z14>0,IF(COUNTRY_INFO!K14=1, 0, IF(COUNTRY_INFO!K14=2, AF14/(COUNTRY_INFO!G14*0.2)*100, IF(COUNTRY_INFO!K14=3, AF14/COUNTRY_INFO!G14*100))),"-"),0) -> 0 | AH14: 532.62 | AI14: =IF(AND(COUNTRY_INFO!K14>0,COUNTRY_INFO!K14<4), IF(AC14/Z14*100<>0, IF(AH14/Z14*100>100,100,AH14/Z14*100), "-"),0) -> 100 | AK14: =IF(AND(D14<>0, D14<>"Desconocido",D14<>"Suspendida",D14<>"No requerido"),D14/COUNTRY_INFO!D14, 0) -> 1 | AL14: =IF(AND(J14<>0,J14<>"Desconocido",J14<>"Suspendida",J14<>"No requerido"),J14/COUNTRY_INFO!D14, 0) -> 0 | AM14: =IF(AND(P14<>0,P14<>"Desconocido",P14<>"No requerido"),P14/(COUNTRY_INFO!E14+COUNTRY_INFO!F14), 0) -> 1 | AN14: =IF(AND(Z14<>0,Z14<>"Desconocido",Z14<>"No requerido"),IF(COUNTRY_INFO!K14=1,1,IF(COUNTRY_INFO!K14=2,0.5*COUNTRY_INFO!F14/(0.5*COUNTRY_INFO!F14+0.2*COUNTRY_INFO!G14),IF(COUNTRY_INFO!K14=3,COUNTRY_INFO!F14/(COUNTRY_INFO!F14+COUNTRY_INFO!G14)))),0) -> 1 | AO14: =IF(AND(Z14<>0,Z14<>"Desconocido",Z14<>"No requerido"),IF(COUNTRY_INFO!K14=1,0,IF(COUNTRY_INFO!K14=2,0.2*COUNTRY_INFO!G14/(0.5*COUNTRY_INFO!F14+0.2*COUNTRY_INFO!G14),IF(COUNTRY_INFO!K14=3,COUNTRY_INFO!G14/(COUNTRY_INFO!F14+COUNTRY_INFO!G14)))),0) -> 0 | AP14: =MAX(COUNTRY_INFO!D14*AK14*PROFILE!$G$7,COUNTRY_INFO!D14*AL14*PROFILE!$G$7) -> 197.1745671 | AQ14: =MAX(COUNTRY_INFO!D14*AK14*PROFILE!$G$8,COUNTRY_INFO!D14*AL14*PROFILE!$G$8,COUNTRY_INFO!D14*AM14*PROFILE!$G$8) -> 757.9429662 | AR14: =MAX(COUNTRY_INFO!D14*AK14*PROFILE!$G$9,COUNTRY_INFO!D14*AL14*PROFILE!$G$9,COUNTRY_INFO!D14*AM14*PROFILE!$G$9,IF(AND(DISTRICT!Z14<>"Desconocido",Z14<>"No requerido"),COUNTRY_INFO!O14*DISTRICT!AN14,0)) -> 1614.440463 | AS14: =MAX(COUNTRY_INFO!D14*AK14*PROFILE!$G$10,COUNTRY_INFO!D14*AL14*PROFILE!$G$10,IF(AND(DISTRICT!Z14<>"Desconocido",Z14<>"No requerido"),COUNTRY_INFO!O14*DISTRICT!AO14,0)) -> 3592.442004 | AT14: 6162 | AU14: 0 | AV14: =MAX('MDA2'!J14,'T1'!L14,'T2'!J14,T3_R1!K14,T3_R2!K14) -> 0 | AW14: =MAX('MDA1'!K14,'MDA2'!K14,'MDA3'!I14,'MDA3'!L14,'T1'!M14,'T2'!K14,T3_R1!L14,T3_R2!L14) -> 1256 | AX14: =MAX('MDA1'!L14,'MDA2'!L14,'MDA3'!J14,'MDA3'!M14,'T1'!N14,'T2'!L14,T3_R1!M14,T3_R2!M14) -> 0 | AY14: 1256 | AZ14: =MAX('MDA2'!J14,T14) -> 0 | BA14: =MAX('MDA1'!K14,'MDA2'!K14,'MDA3'!I14,'MDA3'!L14,V14,AD14) -> 1256 | BB14: =MAX('MDA1'!L14,'MDA2'!L14,'MDA3'!J14,'MDA3'!M14,AF14) -> 0 | BC14: 1256 | BD14: 20.38299253
A15: =IF(COUNTRY_INFO!A15=0," ",COUNTRY_INFO!A15) -> STP | B15: =IF(COUNTRY_INFO!B15=0," ",COUNTRY_INFO!B15) -> Principe | C15: =IF(COUNTRY_INFO!C15=0," ",COUNTRY_INFO!C15) -> Píncipe | D15: =COUNTRY_INFO!L15 -> 7629 | G15: =MAX('MDA1'!M15,'MDA2'!M15) -> 0 | H15: =IF(AND(COUNTRY_INFO!H15>0,COUNTRY_INFO!H15<4),IF(D15>MAX('MDA1'!M15,'MDA2'!M15),MAX('MDA1'!M15,'MDA2'!M15),D15),0) -> 0 | I15: =IF(AND(COUNTRY_INFO!H15>0,COUNTRY_INFO!H15<4), IF(G15/D15*100<>0, IF(G15/D15*100>100,100,G15/D15*100), "-"),0) -> - | J15: =COUNTRY_INFO!M15 -> No requerido | M15: =MAX('MDA1'!M15,MAX('MDA3'!I15,'MDA3'!L15)+MAX('MDA3'!J15,'MDA3'!M15)) -> 0 | N15: =IF(AND(COUNTRY_INFO!I15>0,COUNTRY_INFO!I15<4),IF(J15>MAX('MDA1'!M15,MAX('MDA3'!I15,'MDA3'!L15)+MAX('MDA3'!J15,'MDA3'!M15)),MAX('MDA1'!M15,MAX('MDA3'!I15,'MDA3'!L15)+MAX('MDA3'!J15,'MDA3'!M15)),J15),0) -> 0 | O15: =IF(AND(COUNTRY_INFO!I15>0,COUNTRY_INFO!I15<4), IF(M15/J15*100<>0, IF(M15/J15*100>100,100,M15/J15*100), "-"),0) -> 0 | P15: =COUNTRY_INFO!N15 -> 2937 | S15: =SUM(MAX('MDA2'!J15, 'T1'!L15, MAX(T3_R1!K15, T3_R2!K15)), MAX('MDA1'!K15, 'MDA2'!K15, 'T1'!M15, MAX(T3_R1!L15, T3_R2!L15)), MAX('MDA1'!L15, 'MDA2'!L15, 'T1'!N15, MAX(T3_R1!M15, T3_R2!M15))) -> 2064 | T15: =IF(AND(COUNTRY_INFO!J15>1,COUNTRY_INFO!J15<4),IF(COUNTRY_INFO!E15>MAX('MDA2'!J15,'T1'!L15,MAX(T3_R1!K15,T3_R2!K15)),MAX('MDA2'!J15,'T1'!L15,MAX(T3_R1!K15,T3_R2!K15)),COUNTRY_INFO!E15),0) -> 0 | U15: =IF(AND(COUNTRY_INFO!J15>1,COUNTRY_INFO!J15<4), IF(T15/COUNTRY_INFO!E15*100<>0, IF(T15/COUNTRY_INFO!E15*100>100,100,T15/COUNTRY_INFO!E15*100), "-"),0) -> - | V15: =IF(AND(COUNTRY_INFO!J15>1,COUNTRY_INFO!J15<4),IF(COUNTRY_INFO!F15>MAX('MDA1'!K15,'MDA2'!K15,'T1'!M15,MAX(T3_R1!L15,T3_R2!L15)),MAX('MDA1'!K15,'MDA2'!K15,'T1'!M15,MAX(T3_R1!L15,T3_R2!L15)),COUNTRY_INFO!F15),0) -> 1999 | W15: =IF(AND(COUNTRY_INFO!J15>1,COUNTRY_INFO!J15<4), IF(V15/COUNTRY_INFO!F15*100<>0, IF(V15/COUNTRY_INFO!F15*100>100,100,V15/COUNTRY_INFO!F15*100), "-"),0) -> 100 | X15: 1999 | Y15: =IF(AND(COUNTRY_INFO!J15>1,COUNTRY_INFO!J15<4), IF(S15/P15*100<>0, IF(X15/P15*100>100,100,X15/P15*100), "-"),0) -> 68.06264896 | Z15: =COUNTRY_INFO!O15 -> 659.67 | AC15: =MAX('T1'!L15,'T2'!J15)+MAX('T1'!M15,'T2'!K15)+MAX('T1'!N15,'T2'!L15) -> 2064 | AD15: =IF(COUNTRY_INFO!K15=1,IF(COUNTRY_INFO!F15*0.33>MAX('T1'!M15,'T2'!K15),MAX('T1'!M15,'T2'!K15),COUNTRY_INFO!F15*0.33),IF(COUNTRY_INFO!K15=2,IF(COUNTRY_INFO!F15*0.5>MAX('T1'!M15,'T2'!K15),MAX('T1'!M15,'T2'!K15),COUNTRY_INFO!F15*0.5),IF(COUNTRY_INFO!K15=3,IF(COUNTRY_INFO!F15>MAX('T1'!M15,'T2'!K15),MAX('T1'!M15,'T2'!K15),COUNTRY_INFO!F15),0))) -> 659.67 | AE15: =IF(AND(COUNTRY_INFO!K15>0,COUNTRY_INFO!K15<4),IF(Z15>0,IF(COUNTRY_INFO!K15=1, AD15/(COUNTRY_INFO!F15*0.33)*100, IF(COUNTRY_INFO!K15=2, AD15/(COUNTRY_INFO!F15*0.5)*100, IF(COUNTRY_INFO!K15=3, AD15/COUNTRY_INFO!F15*100))),"-"),0) -> 100 | AF15: =IF(COUNTRY_INFO!K15=2,IF(COUNTRY_INFO!G15*0.2>MAX('T1'!N15,'T2'!L15),MAX('T1'!N15,'T2'!L15),COUNTRY_INFO!G15*0.2),IF(COUNTRY_INFO!K15=3,IF(COUNTRY_INFO!G15>MAX('T1'!N15,'T2'!L15),MAX('T1'!N15,'T2'!L15),COUNTRY_INFO!G15),0)) -> 0 | AG15: =IF(AND(COUNTRY_INFO!K15>0,COUNTRY_INFO!K15<4),IF(Z15>0,IF(COUNTRY_INFO!K15=1, 0, IF(COUNTRY_INFO!K15=2, AF15/(COUNTRY_INFO!G15*0.2)*100, IF(COUNTRY_INFO!K15=3, AF15/COUNTRY_INFO!G15*100))),"-"),0) -> 0 | AH15: 659.67 | AI15: =IF(AND(COUNTRY_INFO!K15>0,COUNTRY_INFO!K15<4), IF(AC15/Z15*100<>0, IF(AH15/Z15*100>100,100,AH15/Z15*100), "-"),0) -> 100 | AK15: =IF(AND(D15<>0, D15<>"Desconocido",D15<>"Suspendida",D15<>"No requerido"),D15/COUNTRY_INFO!D15, 0) -> 1 | AL15: =IF(AND(J15<>0,J15<>"Desconocido",J15<>"Suspendida",J15<>"No requerido"),J15/COUNTRY_INFO!D15, 0) -> 0 | AM15: =IF(AND(P15<>0,P15<>"Desconocido",P15<>"No requerido"),P15/(COUNTRY_INFO!E15+COUNTRY_INFO!F15), 0) -> 1 | AN15: =IF(AND(Z15<>0,Z15<>"Desconocido",Z15<>"No requerido"),IF(COUNTRY_INFO!K15=1,1,IF(COUNTRY_INFO!K15=2,0.5*COUNTRY_INFO!F15/(0.5*COUNTRY_INFO!F15+0.2*COUNTRY_INFO!G15),IF(COUNTRY_INFO!K15=3,COUNTRY_INFO!F15/(COUNTRY_INFO!F15+COUNTRY_INFO!G15)))),0) -> 1 | AO15: =IF(AND(Z15<>0,Z15<>"Desconocido",Z15<>"No requerido"),IF(COUNTRY_INFO!K15=1,0,IF(COUNTRY_INFO!K15=2,0.2*COUNTRY_INFO!G15/(0.5*COUNTRY_INFO!F15+0.2*COUNTRY_INFO!G15),IF(COUNTRY_INFO!K15=3,COUNTRY_INFO!G15/(COUNTRY_INFO!F15+COUNTRY_INFO!G15)))),0) -> 0 | AP15: =MAX(COUNTRY_INFO!D15*AK15*PROFILE!$G$7,COUNTRY_INFO!D15*AL15*PROFILE!$G$7) -> 244.1163213 | AQ15: =MAX(COUNTRY_INFO!D15*AK15*PROFILE!$G$8,COUNTRY_INFO!D15*AL15*PROFILE!$G$8,COUNTRY_INFO!D15*AM15*PROFILE!$G$8) -> 938.3880054 | AR15: =MAX(COUNTRY_INFO!D15*AK15*PROFILE!$G$9,COUNTRY_INFO!D15*AL15*PROFILE!$G$9,COUNTRY_INFO!D15*AM15*PROFILE!$G$9,IF(AND(DISTRICT!Z15<>"Desconocido",Z15<>"No requerido"),COUNTRY_INFO!O15*DISTRICT!AN15,0)) -> 1998.793621 | AS15: =MAX(COUNTRY_INFO!D15*AK15*PROFILE!$G$10,COUNTRY_INFO!D15*AL15*PROFILE!$G$10,IF(AND(DISTRICT!Z15<>"Desconocido",Z15<>"No requerido"),COUNTRY_INFO!O15*DISTRICT!AO15,0)) -> 4447.702053 | AT15: 7629 | AU15: 0 | AV15: =MAX('MDA2'!J15,'T1'!L15,'T2'!J15,T3_R1!K15,T3_R2!K15) -> 0 | AW15: =MAX('MDA1'!K15,'MDA2'!K15,'MDA3'!I15,'MDA3'!L15,'T1'!M15,'T2'!K15,T3_R1!L15,T3_R2!L15) -> 2064 | AX15: =MAX('MDA1'!L15,'MDA2'!L15,'MDA3'!J15,'MDA3'!M15,'T1'!N15,'T2'!L15,T3_R1!M15,T3_R2!M15) -> 0 | AY15: 2064 | AZ15: =MAX('MDA2'!J15,T15) -> 0 | BA15: =MAX('MDA1'!K15,'MDA2'!K15,'MDA3'!I15,'MDA3'!L15,V15,AD15) -> 1999 | BB15: =MAX('MDA1'!L15,'MDA2'!L15,'MDA3'!J15,'MDA3'!M15,AF15) -> 0 | BC15: 1999 | BD15: 26.20264779

Sheet SUMMARY
B2: Formato de Reporte Conjunto para QP v.3
B4: País | D4: =IF(INTRO!$E$34<>0,INTRO!$E$34," ") -> STP | G4: Año | H4: =IF(INTRO!$E$36<>0,INTRO!$E$36," ") -> 2016
B6: Se solicita a las autoridades nacionales completar este formulario para ser enviado a la Organización Mundial de la Salud antes del 15 de agosto del año en curso para presentar datos sobre las intervenciones de QP implementadas durante el año anterior.
B14: Número de personas que recibieron tratamiento (al menos una vez) para las enfermedades
E16: PreESC | F16: ESC | G16: Adultos | H16: Total
B17: Filariasis linfática | E17: 0 | F17: 0 | G17: 0 | H17: =SUM(E17:G17) -> 0
B18: Oncocercosis | E18: No elegible | F18: 0 | G18: 0 | H18: =SUM(E18:G18) -> 0
B19: Helmintiasis transmitidas por el contacto con el suelo | E19: 0 | F19: 32201 | G19: 0 | H19: =SUM(E19:G19) -> 32201
B20: Esquistosomiasis | E20: No focalizado | F20: 32201 | G20: 0 | H20: =SUM(E20:G20) -> 32201
B22: Cobertura de las intervenciones de QP contra las enfermedades (%)
G24: Geográfico | H24: Nacional
B25: Filariasis linfática | G25: 0 | H25: -
B26: Oncocercosis | G26: 0 | H26: 0
B27: Helmintiasis transmitidas por el contacto con el suelo | G27: 100 | H27: 44.36713055
B28: Esquistosomiasis | G28: 100 | H28: 60.63004706
B30: Número de personas tratadas y cobertura del programa (%) para intervenciones de QP
D32: PreESC | E32: ESC | F32: Adultos | G32: Total | H32: Cobertura
B33: MDA 1 (IVM+ALB) | D33: No elegible | E33: ='MDA1'!$K$4 -> 0 | F33: ='MDA1'!$L$4 -> 0 | G33: ='MDA1'!$M$4 -> 0 | H33: ='MDA1'!$Q$4 -> 
B34: MDA 2 (DEC+ALB) | D34: ='MDA2'!$J$4 -> 0 | E34: ='MDA2'!$K$4 -> 0 | F34: ='MDA2'!$L$4 -> 0 | G34: ='MDA2'!$M$4 -> 0 | H34: ='MDA2'!$Q$4 -> 
B35: MDA 3 (IVM) | D35: No elegible | E35: ='MDA3'!$O$4 -> 0 | F35: ='MDA3'!$P$4 -> 0 | G35: ='MDA3'!$Q$4 -> 0 | H35: ='MDA3'!$T$4 -> 
B36: T 1 (PZQ+ALB/MBD) | D36: =IF('T1'!$L$4<>0,'T1'!$L$4,"No focalizado") -> No focalizado | E36: ='T1'!$M$4 -> 32201 | F36: =IF('T1'!$N$4<>0,'T1'!$N$4,"No focalizado") -> No focalizado | G36: ='T1'!$O$4 -> 32201 | H36: ='T1'!$S$4 -> 87.97847053
B37: T 2 (PZQ) | D37: =IF('T2'!$J$4<>0,'T2'!$J$4,"No focalizado") -> No focalizado | E37: ='T2'!$K$4 -> 0 | F37: ='T2'!$L$4 -> 0 | G37: ='T2'!$M$4 -> 0 | H37: ='T2'!$Q$4 -> 
B38: T 3 (ALB/MBD) - ronda 1 | D38: =T3_R1!$K$4 -> 0 | E38: =T3_R1!$L$4 -> 0 | F38: =IF(T3_R1!$M$4<>0,T3_R1!$M$4,"No focalizado") -> No focalizado | G38: =T3_R1!$N$4 -> 0 | H38: =T3_R1!$R$4 -> 
B39: T 3 (ALB/MBD) - ronda 2 | D39: =T3_R2!$K$4 -> 0 | E39: =T3_R2!$L$4 -> 0 | F39: =IF(T3_R2!$M$4<>0,T3_R2!$M$4,"No focalizado") -> No focalizado | G39: =T3_R2!$N$4 -> 0 | H39: =T3_R2!$R$4 -> 
B41: Inventario de los medicamentos para el QP en el país
C43: IVM | D43: DEC | E43: ALB (FL) | F43: ALB (HTS) | G43: MBD | H43: PZQ
B44: Disponible
B45: Distribuido
B46: Desechado
B47: Recibidas
B48: Restante | C48: =C44-C45-C46+C47 -> 0 | D48: 0 | E48: 0 | F48: 0 | G48: 0 | H48: 0
B50: Por favor introduzca el fármaco que ha sido utilizado para tratar los PreESC, y los mecanismos de distribución
B51: Medicamento | D51: Mecanismos de distribución | G51: Fuente
B53: Información adicional
B63: Nombre y firma del coordinador de ETD o representante del ministerio de salud:
D64: 03/05/2/18
B65: Fecha:
B67: Por favor envíe el reporte nacional (firmado y en formato electrónico) al correspondiente Representante de OMS en su país con copia a:
B69: OMS oficina central | D69: PC_JointForms@who.int
B70: OMS oficina regional | D70: Asesor Regional para ETD

Sheet PROFILE (hidden)
B2: Formato de Reporte Conjunto para QP v.3 - perfil de país
B4: País | D4: =IF(INTRO!$E$34<>0,INTRO!$E$34," ") -> STP | G4: Año | H4: =IF(INTRO!$E$36<>0,INTRO!$E$36," ") -> 2016
B5: !!! ADVERTENCIA !!! Antes de analizar los datos en el perfil de país, asegúrese de que su informe en la pestaña SUMMARY esté actualizado
B6: Población total | G6: 1 | H6: =COUNTRY_INFO!D4 -> 188134
B7: Población — otros grupos de edad | G7: =IF($H$6<>0,H7/$H$6,0) -> 0.03199846918 | H7: =H6-SUM(H8:H10) -> 6020
B8: Población — Pre-ESC | D8: =INTRO!B48 -> 1-4 años | G8: =IF($H$6<>0,H8/$H$6,0) -> 0.1230027534 | H8: =COUNTRY_INFO!E4 -> 23141
B9: Población — ESC | D9: =INTRO!B49 -> 5-14 años | G9: =IF($H$6<>0,H9/$H$6,0) -> 0.2619994259 | H9: =COUNTRY_INFO!F4 -> 49291
B10: Población — Adultos | D10: =INTRO!B50 -> 15 años o más | G10: 0.5829993515 | H10: =COUNTRY_INFO!G4 -> 109682
B12: Número total de personas que necesitan QP para al menos una enfermedad (FL, ONCO, HTS, ESQ) | H12: =DISTRICT!AT6 -> 188134
B13: Proporción del número de personas que necesitan QP para al menos una enfermedad del total de la población | H13: =IF(H6<>0,H12/H6,0) -> 1
B14: Número de UI que requieren QP para al menos una enfermedad (FL, ONCO, HTS, ESQ) | H14: =COUNTIF(DISTRICT!AT9:AT1000,">0") -> 7
B15: Número de UI que recibieron QP para al menos una enfermedad (FL, ONCO, HTS, ESQ) | H15: =COUNTIF(DISTRICT!AY9:AY1000,">0") -> 7
B16: Proporción de UI que requieren QP para al menos una enfermedad y que lo recibieron | H16: =IF(H14<>0,H15/H14,0) -> 1
B17: Número total de personas que recibieron QP para al menos una enfermedad (FL, ONCO, HTS, ESQ) | H17: =DISTRICT!AY6 -> 32201
B18: Número total de personas que necesitan y que recibieron QP para al menos una enfermedad (FL, ONCO, HTS, ESQ) | H18: =DISTRICT!BC6 -> 32136
B19: Cobertura de la QP para al menos una enfermedad (FL, ONCO, HTS, ESQ) | H19: =DISTRICT!BD6 -> 0.1708144195
B20: Número de UI que recibieron tratamiento para todas la enfermedades que requieren QP en esas UI | H20: =DISTRICT!AU6 -> 0
B21: Población requiriendo QP en UI que recibieron tratamiento para todas las enfermedades que necesitan QP | H21: =SUMIF(DISTRICT!AU9:AU1000,"Y",DISTRICT!AT9:AT1000) -> 0
B22: Población que recibió QP en UI que fueron tratadas para todas las enfermedades que necesitaban QP | H22: =SUMIF(DISTRICT!AU9:AU1000,"Y",DISTRICT!AY9:AY1000) -> 0
E24: FL | F24: Onco | G24: HTS | H24: ESQ
B26: Enfermedades que requieren QP en el país | E26: =IF(INTRO!E38="Endémico","Sí","No") -> Sí | F26: =IF(INTRO!E40="Endémico","Sí","No") -> No | G26: =IF(INTRO!E42="Endémico","Sí","No") -> Sí | H26: =IF(INTRO!E44="Endémico","Sí","No") -> Sí
B27: Número de unidades de implementación (UI) en el país | E27: =IF(E26="Sí",INTRO!$E$46,"-") -> 7 | F27: =IF(F26="Sí",INTRO!$E$46,"-") -> - | G27: =IF(G26="Sí",INTRO!$E$46,"-") -> 7 | H27: =IF(H26="Sí",INTRO!$E$46,"-") -> 7
B28: Número de UI con estado de endemicidad conocido | E28: =IF(E26="Sí",E27-E29,"-") -> 7 | F28: =IF(F26="Sí",F27-F29,"-") -> - | G28: =IF(G26="Sí",G27-G29,"-") -> 7 | H28: =IF(H26="Sí",H27-H29,"-") -> 7
B29: Número de UI con estado de endemicidad desconocido | E29: =IF(E26="Sí",E27-(992-COUNTIF(COUNTRY_INFO!H$9:H$1000,""))+COUNTIF(COUNTRY_INFO!H$9:H$1000,"=4"),"-") -> 0 | F29: =IF(F26="Sí",F27-(992-COUNTIF(COUNTRY_INFO!I$9:I$1000,""))+COUNTIF(COUNTRY_INFO!I$9:I$1000,"=4"),"-") -> - | G29: =IF(G26="Sí",G27-(992-COUNTIF(COUNTRY_INFO!J$9:J$1000,""))+COUNTIF(COUNTRY_INFO!J$9:J$1000,"=4")+COUNTIF(COUNTRY_INFO!J$9:J$1000,"=5"),"-") -> 0 | H29: =IF(H26="Sí",H27-(992-COUNTIF(COUNTRY_INFO!K$9:K$1000,""))+COUNTIF(COUNTRY_INFO!K$9:K$1000,"=4")+COUNTIF(COUNTRY_INFO!K$9:K$1000,"=5"),"-") -> 0
B30: Número de UI no endémicas | E30: =IF(E26="Sí",COUNTIF(COUNTRY_INFO!H$9:H$1000,"=0"),"-") -> 0 | F30: =IF(F26="Sí",COUNTIF(COUNTRY_INFO!I$9:I$1000,"=0"),"-") -> - | G30: =IF(G26="Sí",COUNTIF(COUNTRY_INFO!J$9:J$1000,"=0"),"-") -> 0 | H30: =IF(H26="Sí",COUNTIF(COUNTRY_INFO!K$9:K$1000,"=0"),"-") -> 0
B31: Número de UI que requieren QP (total) | E31: =COUNTIF(COUNTRY_INFO!H$9:H$1000,"=1") -> 7 | F31: =COUNTIF(COUNTRY_INFO!I$9:I$1000,"=1") -> 0 | G31: =SUM(G33:G34) -> 7 | H31: =SUM(H32:H34) -> 7
D32: prevalencia baja | G32: =COUNTIF(COUNTRY_INFO!J$9:J$1000,"=1") -> 0 | H32: =COUNTIF(COUNTRY_INFO!K$9:K$1000,"=1") -> 5
D33: prevalencia moderada | G33: =COUNTIF(COUNTRY_INFO!J$9:J$1000,"=2") -> 0 | H33: =COUNTIF(COUNTRY_INFO!K$9:K$1000,"=2") -> 2
D34: prevalencia alta | G34: =COUNTIF(COUNTRY_INFO!J$9:J$1000,"=3") -> 7 | H34: =COUNTIF(COUNTRY_INFO!K$9:K$1000,"=3") -> 0
B35: Población que requiere QP en el país (total) | E35: =COUNTRY_INFO!L4 -> 188134 | F35: =COUNTRY_INFO!M4 -> 0 | G35: =COUNTRY_INFO!N4 -> 72432 | H35: =COUNTRY_INFO!O4 -> 35677.97
C36: Pre-ESC | D36: prevalencia moderada | G36: =SUMIF(COUNTRY_INFO!J$9:J$1000,"=2",COUNTRY_INFO!E$9:E$1000) -> 0
D37: prevalencia alta | G37: =SUMIF(COUNTRY_INFO!J$9:J$1000,"=3",COUNTRY_INFO!E$9:E$1000) -> 23141
C38: ESC | D38: prevalencia baja | H38: =SUMIF(COUNTRY_INFO!K$9:K$1000,"=1",COUNTRY_INFO!F$9:F$1000)*0.33 -> 5850.57
D39: prevalencia moderada | G39: =SUMIF(COUNTRY_INFO!J$9:J$1000,"=2",COUNTRY_INFO!F$9:F$1000) -> 0 | H39: =SUMIF(COUNTRY_INFO!K$9:K$1000,"=2",COUNTRY_INFO!F$9:F$1000)*0.5 -> 15781
D40: prevalencia alta | G40: =SUMIF(COUNTRY_INFO!J$9:J$1000,"=3",COUNTRY_INFO!F$9:F$1000) -> 49291 | H40: =SUMIF(COUNTRY_INFO!K$9:K$1000,"=3",COUNTRY_INFO!F$9:F$1000) -> 0
C41: Adultos | D41: prevalencia moderada | H41: =SUMIF(COUNTRY_INFO!K$9:K$1000,"=2",COUNTRY_INFO!G$9:G$1000)*0.2 -> 14046.4
D42: prevalencia alta | H42: =SUMIF(COUNTRY_INFO!K$9:K$1000,"=3",COUNTRY_INFO!G$9:G$1000) -> 0
B43: Número de UI en las que se implementó QP (total) | E43: =COUNTIF(DISTRICT!G$9:G$1000,">0") -> 0 | F43: =COUNTIF(DISTRICT!M$9:M$1000,">0") -> 0 | G43: =COUNTIF(DISTRICT!S$9:S$1000,">0") -> 7 | H43: =COUNTIF(DISTRICT!AC$9:AC$1000,">0") -> 7
B44: Número de UI en necesidad donde se implementó PC (total) | E44: =COUNTIF(DISTRICT!H$9:H$1000,">0") -> 0 | F44: =COUNTIF(DISTRICT!N$9:N$1000,">0") -> 0 | G44: =COUNTIF(DISTRICT!X$9:X$1000,">0") -> 7 | H44: =COUNTIF(DISTRICT!AH$9:AH$1000,">0") -> 7
C45: Pre-ESC | G45: =COUNTIF(DISTRICT!T$9:T$1000,">0") -> 0
C46: ESC | G46: =COUNTIF(DISTRICT!V$9:V$1000,">0") -> 7 | H46: =COUNTIF(DISTRICT!AD$9:AD$1000,">0") -> 7
C47: Adultos | H47: =COUNTIF(DISTRICT!AF$9:AF$1000,">0") -> 0
B48: Número de personas tratadas (total) | E48: =DISTRICT!G4 -> 0 | F48: =DISTRICT!M4 -> 0 | G48: =DISTRICT!S4 -> 32201 | H48: =DISTRICT!AC4 -> 32201
C49: Pre-ESC | E49: =SUMMARY!$E17 -> 0 | F49: =SUMMARY!$E18 -> No elegible | G49: =SUMMARY!$E19 -> 0 | H49: =SUMMARY!$E20 -> No focalizado
C50: ESC | E50: =SUMMARY!$F17 -> 0 | F50: =SUMMARY!$F18 -> 0 | G50: =SUMMARY!$F19 -> 32201 | H50: =SUMMARY!$F20 -> 32201
C51: Adultos | E51: =SUMMARY!$G17 -> 0 | F51: =SUMMARY!$G18 -> 0 | G51: =SUMMARY!$G19 -> 0 | H51: =SUMMARY!$G20 -> 0
B52: Número de personas que necesitaban y que fueron tratadas (total) | E52: =DISTRICT!H4 -> 0 | F52: =DISTRICT!N4 -> 0 | G52: =DISTRICT!X4 -> 32136 | H52: =DISTRICT!AH4 -> 21631.57
C53: Pre-ESC | G53: =DISTRICT!T4 -> 0
C54: ESC | G54: =DISTRICT!V4 -> 32136 | H54: =DISTRICT!AD4 -> 21631.57
C55: Adultos | H55: =DISTRICT!AF4 -> 0
B56: Cobertura geográfica (todas las edades) | E56: =IF(E31<>0,E44/E31,0) -> 0 | F56: =IF(F31<>0,F44/F31,0) -> 0 | G56: =IF(G31<>0,G44/G31,0) -> 1 | H56: =IF(H31<>0,H44/H31,0) -> 1
C57: Pre-ESC | G57: =IF(G31<>0,G45/G31,0) -> 0
C58: ESC | G58: =IF(G31<>0,G46/G31,0) -> 1 | H58: =IF(H31<>0,H46/H31,0) -> 1
C59: Adultos | H59: =IF(SUM(H33:H34)<>0,H47/SUM(H33:H34),0) -> 0
B60: Cobertura nacional (total) | E60: =IF(E35<>0,E52/E35,0) -> 0 | F60: =IF(F35<>0,F52/F35,0) -> 0 | G60: =IF(G35<>0,G52/G35,0) -> 0.4436713055 | H60: =IF(H35<>0,H52/H35,0) -> 0.6063004706
C61: Pre-ESC | G61: =IF(SUM(G36:G37)<>0,G53/SUM(G36:G37),0) -> 0
C62: ESC | G62: =IF(SUM(G39:G40)<>0,G54/SUM(G39:G40),0) -> 0.6519648617 | H62: =IF(SUM(H38:H40)<>0,H54/SUM(H38:H40),0) -> 1
C63: Adultos | H63: =IF(SUM(H41:H42)<>0,H55/SUM(H41:H42),0) -> 0
E64: FL | F64: Onco | G64: HTS | H64: ESQ
B66: Número de UI que alcanzaron la cobertura efectiva (todas las edades) | E66: =COUNTIF(DISTRICT!I$9:I$1000,">=65") -> 0 | F66: =COUNTIF(DISTRICT!O$9:O$1000,">=65") -> 0 | G66: =COUNTIF(DISTRICT!Y$9:Y$1000,">=75") -> 0 | H66: =COUNTIF(DISTRICT!AI$9:AI$1000,">=75") -> 5
C67: Pre-ESC | G67: =COUNTIF(DISTRICT!U$9:U$1000,">=75") -> 0
C68: ESC | G68: =COUNTIF(DISTRICT!W$9:W$1000,">=75") -> 2 | H68: =COUNTIF(DISTRICT!AE$9:AE$1000,">=75") -> 7
C69: Adultos | H69: =COUNTIF(DISTRICT!AG$9:AG$1000,">=75") -> 0
B70: Número de personas en necesidad que fueron tratados en UI que alcanzaron cobertura efectiva (total) | E70: =SUMIF(DISTRICT!I9:I1000,">=65",DISTRICT!H9:H1000) -> 0 | F70: =SUMIF(DISTRICT!O9:O1000,">=65",DISTRICT!N9:N1000) -> 0 | G70: =SUMIF(DISTRICT!Y9:Y1000,">=75",DISTRICT!X9:X1000) -> 0 | H70: =SUMIF(DISTRICT!AI9:AI1000,">=75",DISTRICT!AH9:AH1000) -> 5850.57
C71: Pre-ESC | G71: =SUMIF(DISTRICT!U9:U1000,">=75",DISTRICT!T9:T1000) -> 0
C72: ESC | G72: =SUMIF(DISTRICT!W9:W1000,">=75",DISTRICT!V9:V1000) -> 3255 | H72: =SUMIF(DISTRICT!AE9:AE1000,">=75",DISTRICT!AD9:AD1000) -> 21631.57
C73: Adultos | H73: =SUMIF(DISTRICT!AG9:AG1000,">=75",DISTRICT!AF9:AF1000) -> 0
B74: Proporción de UI que requieren QP y alcanzaron cobertura efectiva (total) | E74: =IF(E44<>0,E66/E44,0) -> 0 | F74: =IF(F44<>0,F66/F44,0) -> 0 | G74: =IF(G44<>0,G66/G44,0) -> 0 | H74: =IF(H44<>0,H66/H44,0) -> 0.7142857143
C75: Pre-ESC | G75: =IF(G45<>0,G67/G45,0) -> 0
C76: ESC | G76: =IF(G46<>0,G68/G46,0) -> 0.2857142857 | H76: =IF(H46<>0,H68/H46,0) -> 1
C77: Adultos | H77: =IF(H47<>0,H69/H47,0) -> 0
B78: Número de unidades de implementación en las que se detuvo la QP (es decir, bajo vigilancia) | E78: =COUNTIF(COUNTRY_INFO!H$9:H$1000,"=99") -> 0 | F78: =COUNTIF(COUNTRY_INFO!I$9:I$1000,"=99") -> 0
B79: Número de personas en las UI que ya no requieren QP (detenido) | E79: =SUMIF(COUNTRY_INFO!H$9:H$1000,"=99",COUNTRY_INFO!D$9:D$1000) -> 0 | F79: =SUMIF(COUNTRY_INFO!I$9:I$1000,"=99",COUNTRY_INFO!D$9:D$1000) -> 0
B80: Número de personas que requieren QP que viven en UI focalizadas para la QP | E80: =SUMIF(DISTRICT!H$9:H$1000,">0",DISTRICT!D$9:D$1000) -> 0 | F80: =SUMIF(DISTRICT!N$9:N$1000,">0",DISTRICT!J$9:J$1000) -> 0 | G80: =SUMIF(DISTRICT!X$9:X$1000,">0",DISTRICT!P$9:P$1000) -> 72432 | H80: =SUMIF(DISTRICT!AH$9:AH$1000,">0",DISTRICT!Z$9:Z$1000) -> 35677.97
B81: Número de personas que requieren QP que viven en UI no focalizadas para la QP | E81: =SUMIF(DISTRICT!H$9:H$1000,"=0",DISTRICT!D$9:D$1000) -> 188134 | F81: =SUMIF(DISTRICT!N$9:N$1000,"=0",DISTRICT!J$9:J$1000) -> 0 | G81: =SUMIF(DISTRICT!X$9:X$1000,"=0",DISTRICT!P$9:P$1000) -> 0 | H81: =SUMIF(DISTRICT!AH$9:AH$1000,"=0",DISTRICT!Z$9:Z$1000) -> 0
E82: =E35-E52 -> 188134 | F82: =F35-F52 -> 0 | G82: 40296 | H82: 14046.4
B83: Número de UI que requieren y reciben QP | E83: =E31-E44 -> 7 | F83: =F31-F44 -> 0 | G83: 0 | H83: 0
E84: =E27-E31-E29 -> 0 | G84: 0 | H84: =H27-H31-H29 -> 0
G86: Requieren y reciben QP
G87: Requieren y no reciben QP
G88: No requieren QP
G89: Estado desconocido
B124: Haga clic aquí para acceder a los datos del Portal de Datos sobre Quimioterapia Preventiva
